Workbook

Sheet DCF
B1: NPV руб. | C1: =BI148 -> 8176797138 | W1: выручка | X1: =BI78 -> 435011945548
B2: 1000000 | C2: 30000000 | W2: PV | X2: =BI171 -> 19036337897 | Y2: =X2/X1 -> 0.04376049461
B3: Исходные данные для технологических расчетов | C3: показатели | E3: Обоснование добычи нефти и объема буровых работ | V3: =BI5 -> 30000000 | W3: KAПЗАТРАТЫ | X3: =BI174 -> 20382583678 | Y3: =BI127 -> 33719781600
B4: Геологические запасы | C4: =C6/C5 -> 88.23529412 | E4: ПЛАСТ | V4: =$C$11 -> 2015 | W4: =V4+1 -> 2016 | X4: =W4+1 -> 2017 | Y4: =X4+1 -> 2018 | Z4: 2019 | AA4: 2020 | AB4: 2021 | AC4: 2022 | AD4: 2023 | AE4: 2024 | AF4: 2025 | AG4: 2026 | AH4: 2027 | AI4: 2028 | AJ4: 2029 | AK4: 2030 | AL4: 2031 | AM4: 2032 | AN4: 2033 | AO4: 2034 | AP4: 2035 | AQ4: 2036 | AR4: 2037 | AS4: 2038 | AT4: 2039 | AU4: 2040 | AV4: 2041 | AW4: 2042 | AX4: 2043 | AY4: 2044 | AZ4: 2045 | BA4: 2046 | BB4: 2047 | BC4: 2048 | BD4: 2049 | BE4: 2050 | BF4: 2051 | BG4: 2052 | BH4: 2053
B5: Утвержденный КИН | C5: 0.34 | E5: 1. ДOБ.HEФTИ,BCEГO,T | W5: =SUM(W6:W7) -> 230400 | X5: 674663.1477 | Y5: =SUM(Y6:Y7) -> 1087315.03 | Z5: 1470604.925 | AA5: 1826622.068 | AB5: 1926907.035 | AC5: 1789799.172 | AD5: 1662447.133 | AE5: 1544156.749 | AF5: 1434283.242 | AG5: 1332227.717 | AH5: 1237433.888 | AI5: 1149385.055 | AJ5: 1067601.282 | AK5: 991636.7811 | AL5: 921077.4872 | AM5: 855538.7956 | AN5: 794663.4685 | AO5: 738119.6872 | AP5: 685599.2433 | AQ5: 636815.8586 | AR5: 591503.6251 | AS5: 549415.5552 | AT5: 510322.2356 | AU5: 474010.5766 | AV5: 440282.6509 | AW5: 408954.6147 | AX5: 379855.7053 | AY5: 352827.3105 | AZ5: 327722.1043 | BA5: 304403.2433 | BB5: 282743.6212 | BC5: 262625.1759 | BD5: 243938.2461 | BE5: 226580.973 | BF5: 210458.7458 | BG5: 195483.6856 | BH5: 181574.1664 | BI5: =SUM(W5:BH5) -> 30000000 | BJ5: =MAX(W5:BH5) -> 1926907.035
B6: Запасы (извлекаемые) в расчет млн.т | C6: 30 | E6: 2. B T.Ч.ИЗ:ПEPEX.CKB. | W6: =W23 -> 0 | X6: 444263.1477 | Y6: =Y23 -> 856915.0295 | Z6: =Z23 -> 1240204.925 | AA6: 1596222.068 | AB6: 1926907.035 | AC6: 1789799.172 | AD6: 1662447.133 | AE6: 1544156.749 | AF6: 1434283.242 | AG6: 1332227.717 | AH6: 1237433.888 | AI6: 1149385.055 | AJ6: 1067601.282 | AK6: 991636.7811 | AL6: 921077.4872 | AM6: 855538.7956 | AN6: 794663.4685 | AO6: 738119.6872 | AP6: 685599.2433 | AQ6: 636815.8586 | AR6: 591503.6251 | AS6: 549415.5552 | AT6: 510322.2356 | AU6: 474010.5766 | AV6: 440282.6509 | AW6: 408954.6147 | AX6: 379855.7053 | AY6: 352827.3105 | AZ6: 327722.1043 | BA6: 304403.2433 | BB6: 282743.6212 | BC6: 262625.1759 | BD6: 243938.2461 | BE6: 226580.973 | BF6: 210458.7458 | BG6: 195483.6856 | BH6: 181574.1664
B7: Темп бурения скв./год | C7: 48 | E7: 3. HOBЫX CKB. | W7: =W9*W14*W13 -> 230400 | X7: 230400 | Y7: =Y9*Y14*Y13 -> 230400 | Z7: 230400 | AA7: 230400 | AB7: 0 | AC7: 0 | AD7: 0 | AE7: 0 | AF7: 0 | AG7: 0 | AH7: 0 | AI7: 0 | AJ7: 0 | AK7: 0 | AL7: 0 | AM7: 0 | AN7: 0 | AO7: 0 | AP7: 0 | AQ7: 0 | AR7: 0 | AS7: 0 | AT7: 0 | AU7: 0 | AV7: 0 | AW7: 0 | AX7: 0 | AY7: 0 | AZ7: 0 | BA7: 0 | BB7: 0 | BC7: 0 | BD7: 0 | BE7: 0 | BF7: 0 | BG7: 0 | BH7: 0
B8: Год ввода в разработку | C8: 2016 | E8: 4. MEX.СКВ. | W8: =0.8*W5 -> 184320 | X8: 539730.5182 | Y8: =0.8*Y5 -> 869852.0236 | Z8: 1176483.94 | AA8: 1461297.655 | AB8: 1541525.628 | AC8: 1431839.337 | AD8: 1329957.706 | AE8: 1235325.399 | AF8: 1147426.594 | AG8: 1065782.173 | AH8: 989947.1106 | AI8: 919508.0441 | AJ8: 854081.0252 | AK8: 793309.4249 | AL8: 736861.9897 | AM8: 684431.0365 | AN8: 635730.7748 | AO8: 590495.7498 | AP8: 548479.3946 | AQ8: 509452.6869 | AR8: 473202.9001 | AS8: 439532.4442 | AT8: 408257.7884 | AU8: 379208.4613 | AV8: 352226.1208 | AW8: 327163.6918 | AX8: 303884.5642 | AY8: 282261.8484 | AZ8: 262177.6834 | BA8: 243522.5946 | BB8: 226194.8969 | BC8: 210100.1407 | BD8: 195150.5968 | BE8: 181264.7784 | BF8: 168366.9966 | BG8: 156386.9485 | BH8: 145259.3331
B9: Дебит новой т/сут | C9: 30 | E9: 5. BBOД HOBЫX ДОБЫВАЮЩИХ CKB,BCEГO | W9: =SUM(W10:W11) -> 48 | X9: 48 | Y9: =SUM(Y10:Y11) -> 48 | Z9: 48 | AA9: 48 | AB9: 0 | AC9: 0 | AD9: 0 | AE9: 0 | AF9: 0 | AG9: 0 | AH9: 0 | AI9: 0 | AJ9: 0 | AK9: 0 | AL9: 0 | AM9: 0 | AN9: 0 | AO9: 0 | AP9: 0 | AQ9: 0 | AR9: 0 | AS9: 0 | AT9: 0 | AU9: 0 | AV9: 0 | AW9: 0 | AX9: 0 | AY9: 0 | AZ9: 0 | BA9: 0 | BB9: 0 | BC9: 0 | BD9: 0 | BE9: 0 | BF9: 0 | BG9: 0 | BH9: 0
B10: Глубина новой | C10: 2900 | E10: 6. B T.Ч. : ИЗ ЭKCПЛ.БУP. | W10: =ROUND(IF((W4-$C$8)>=0,IF(ISERROR(IF((SUM($E$10:V10)+$C$7)/$C$28<1,$C$7,$C$28-SUM($E$10:V10))),0,IF((SUM($E$10:V10)+$C$7)/$C$28<1,$C$7,$C$28-SUM($E$10:V10))),0),0) -> 48 | X10: =ROUND(IF((X4-$C$8)>=0,IF(ISERROR(IF((SUM($E$10:W10)+$C$7)/$C$28<1,$C$7,$C$28-SUM($E$10:W10))),0,IF((SUM($E$10:W10)+$C$7)/$C$28<1,$C$7,$C$28-SUM($E$10:W10))),0),0) -> 48 | Y10: =ROUND(IF((Y4-$C$8)>=0,IF(ISERROR(IF((SUM($E$10:X10)+$C$7)/$C$28<1,$C$7,$C$28-SUM($E$10:X10))),0,IF((SUM($E$10:X10)+$C$7)/$C$28<1,$C$7,$C$28-SUM($E$10:X10))),0),0) -> 48 | Z10: =ROUND(IF((Z4-$C$8)>=0,IF(ISERROR(IF((SUM($E$10:Y10)+$C$7)/$C$28<1,$C$7,$C$28-SUM($E$10:Y10))),0,IF((SUM($E$10:Y10)+$C$7)/$C$28<1,$C$7,$C$28-SUM($E$10:Y10))),0),0) -> 48 | AA10: =ROUND(IF((AA4-$C$8)>=0,IF(ISERROR(IF((SUM($E$10:Z10)+$C$7)/$C$28<1,$C$7,$C$28-SUM($E$10:Z10))),0,IF((SUM($E$10:Z10)+$C$7)/$C$28<1,$C$7,$C$28-SUM($E$10:Z10))),0),0) -> 48 | AB10: =ROUND(IF((AB4-$C$8)>=0,IF(ISERROR(IF((SUM($E$10:AA10)+$C$7)/$C$28<1,$C$7,$C$28-SUM($E$10:AA10))),0,IF((SUM($E$10:AA10)+$C$7)/$C$28<1,$C$7,$C$28-SUM($E$10:AA10))),0),0) -> 0 | AC10: =ROUND(IF((AC4-$C$8)>=0,IF(ISERROR(IF((SUM($E$10:AB10)+$C$7)/$C$28<1,$C$7,$C$28-SUM($E$10:AB10))),0,IF((SUM($E$10:AB10)+$C$7)/$C$28<1,$C$7,$C$28-SUM($E$10:AB10))),0),0) -> 0 | AD10: =ROUND(IF((AD4-$C$8)>=0,IF(ISERROR(IF((SUM($E$10:AC10)+$C$7)/$C$28<1,$C$7,$C$28-SUM($E$10:AC10))),0,IF((SUM($E$10:AC10)+$C$7)/$C$28<1,$C$7,$C$28-SUM($E$10:AC10))),0),0) -> 0 | AE10: =ROUND(IF((AE4-$C$8)>=0,IF(ISERROR(IF((SUM($E$10:AD10)+$C$7)/$C$28<1,$C$7,$C$28-SUM($E$10:AD10))),0,IF((SUM($E$10:AD10)+$C$7)/$C$28<1,$C$7,$C$28-SUM($E$10:AD10))),0),0) -> 0 | AF10: =ROUND(IF((AF4-$C$8)>=0,IF(ISERROR(IF((SUM($E$10:AE10)+$C$7)/$C$28<1,$C$7,$C$28-SUM($E$10:AE10))),0,IF((SUM($E$10:AE10)+$C$7)/$C$28<1,$C$7,$C$28-SUM($E$10:AE10))),0),0) -> 0 | AG10: =ROUND(IF((AG4-$C$8)>=0,IF(ISERROR(IF((SUM($E$10:AF10)+$C$7)/$C$28<1,$C$7,$C$28-SUM($E$10:AF10))),0,IF((SUM($E$10:AF10)+$C$7)/$C$28<1,$C$7,$C$28-SUM($E$10:AF10))),0),0) -> 0 | AH10: =ROUND(IF((AH4-$C$8)>=0,IF(ISERROR(IF((SUM($E$10:AG10)+$C$7)/$C$28<1,$C$7,$C$28-SUM($E$10:AG10))),0,IF((SUM($E$10:AG10)+$C$7)/$C$28<1,$C$7,$C$28-SUM($E$10:AG10))),0),0) -> 0 | AI10: =ROUND(IF((AI4-$C$8)>=0,IF(ISERROR(IF((SUM($E$10:AH10)+$C$7)/$C$28<1,$C$7,$C$28-SUM($E$10:AH10))),0,IF((SUM($E$10:AH10)+$C$7)/$C$28<1,$C$7,$C$28-SUM($E$10:AH10))),0),0) -> 0 | AJ10: =ROUND(IF((AJ4-$C$8)>=0,IF(ISERROR(IF((SUM($E$10:AI10)+$C$7)/$C$28<1,$C$7,$C$28-SUM($E$10:AI10))),0,IF((SUM($E$10:AI10)+$C$7)/$C$28<1,$C$7,$C$28-SUM($E$10:AI10))),0),0) -> 0 | AK10: =ROUND(IF((AK4-$C$8)>=0,IF(ISERROR(IF((SUM($E$10:AJ10)+$C$7)/$C$28<1,$C$7,$C$28-SUM($E$10:AJ10))),0,IF((SUM($E$10:AJ10)+$C$7)/$C$28<1,$C$7,$C$28-SUM($E$10:AJ10))),0),0) -> 0 | AL10: =ROUND(IF((AL4-$C$8)>=0,IF(ISERROR(IF((SUM($E$10:AK10)+$C$7)/$C$28<1,$C$7,$C$28-SUM($E$10:AK10))),0,IF((SUM($E$10:AK10)+$C$7)/$C$28<1,$C$7,$C$28-SUM($E$10:AK10))),0),0) -> 0 | AM10: =ROUND(IF((AM4-$C$8)>=0,IF(ISERROR(IF((SUM($E$10:AL10)+$C$7)/$C$28<1,$C$7,$C$28-SUM($E$10:AL10))),0,IF((SUM($E$10:AL10)+$C$7)/$C$28<1,$C$7,$C$28-SUM($E$10:AL10))),0),0) -> 0 | AN10: =ROUND(IF((AN4-$C$8)>=0,IF(ISERROR(IF((SUM($E$10:AM10)+$C$7)/$C$28<1,$C$7,$C$28-SUM($E$10:AM10))),0,IF((SUM($E$10:AM10)+$C$7)/$C$28<1,$C$7,$C$28-SUM($E$10:AM10))),0),0) -> 0 | AO10: =ROUND(IF((AO4-$C$8)>=0,IF(ISERROR(IF((SUM($E$10:AN10)+$C$7)/$C$28<1,$C$7,$C$28-SUM($E$10:AN10))),0,IF((SUM($E$10:AN10)+$C$7)/$C$28<1,$C$7,$C$28-SUM($E$10:AN10))),0),0) -> 0 | AP10: =ROUND(IF((AP4-$C$8)>=0,IF(ISERROR(IF((SUM($E$10:AO10)+$C$7)/$C$28<1,$C$7,$C$28-SUM($E$10:AO10))),0,IF((SUM($E$10:AO10)+$C$7)/$C$28<1,$C$7,$C$28-SUM($E$10:AO10))),0),0) -> 0 | AQ10: =ROUND(IF((AQ4-$C$8)>=0,IF(ISERROR(IF((SUM($E$10:AP10)+$C$7)/$C$28<1,$C$7,$C$28-SUM($E$10:AP10))),0,IF((SUM($E$10:AP10)+$C$7)/$C$28<1,$C$7,$C$28-SUM($E$10:AP10))),0),0) -> 0 | AR10: =ROUND(IF((AR4-$C$8)>=0,IF(ISERROR(IF((SUM($E$10:AQ10)+$C$7)/$C$28<1,$C$7,$C$28-SUM($E$10:AQ10))),0,IF((SUM($E$10:AQ10)+$C$7)/$C$28<1,$C$7,$C$28-SUM($E$10:AQ10))),0),0) -> 0 | AS10: =ROUND(IF((AS4-$C$8)>=0,IF(ISERROR(IF((SUM($E$10:AR10)+$C$7)/$C$28<1,$C$7,$C$28-SUM($E$10:AR10))),0,IF((SUM($E$10:AR10)+$C$7)/$C$28<1,$C$7,$C$28-SUM($E$10:AR10))),0),0) -> 0 | AT10: =ROUND(IF((AT4-$C$8)>=0,IF(ISERROR(IF((SUM($E$10:AS10)+$C$7)/$C$28<1,$C$7,$C$28-SUM($E$10:AS10))),0,IF((SUM($E$10:AS10)+$C$7)/$C$28<1,$C$7,$C$28-SUM($E$10:AS10))),0),0) -> 0 | AU10: =ROUND(IF((AU4-$C$8)>=0,IF(ISERROR(IF((SUM($E$10:AT10)+$C$7)/$C$28<1,$C$7,$C$28-SUM($E$10:AT10))),0,IF((SUM($E$10:AT10)+$C$7)/$C$28<1,$C$7,$C$28-SUM($E$10:AT10))),0),0) -> 0 | AV10: =ROUND(IF((AV4-$C$8)>=0,IF(ISERROR(IF((SUM($E$10:AU10)+$C$7)/$C$28<1,$C$7,$C$28-SUM($E$10:AU10))),0,IF((SUM($E$10:AU10)+$C$7)/$C$28<1,$C$7,$C$28-SUM($E$10:AU10))),0),0) -> 0 | AW10: =ROUND(IF((AW4-$C$8)>=0,IF(ISERROR(IF((SUM($E$10:AV10)+$C$7)/$C$28<1,$C$7,$C$28-SUM($E$10:AV10))),0,IF((SUM($E$10:AV10)+$C$7)/$C$28<1,$C$7,$C$28-SUM($E$10:AV10))),0),0) -> 0 | AX10: =ROUND(IF((AX4-$C$8)>=0,IF(ISERROR(IF((SUM($E$10:AW10)+$C$7)/$C$28<1,$C$7,$C$28-SUM($E$10:AW10))),0,IF((SUM($E$10:AW10)+$C$7)/$C$28<1,$C$7,$C$28-SUM($E$10:AW10))),0),0) -> 0 | AY10: =ROUND(IF((AY4-$C$8)>=0,IF(ISERROR(IF((SUM($E$10:AX10)+$C$7)/$C$28<1,$C$7,$C$28-SUM($E$10:AX10))),0,IF((SUM($E$10:AX10)+$C$7)/$C$28<1,$C$7,$C$28-SUM($E$10:AX10))),0),0) -> 0 | AZ10: =ROUND(IF((AZ4-$C$8)>=0,IF(ISERROR(IF((SUM($E$10:AY10)+$C$7)/$C$28<1,$C$7,$C$28-SUM($E$10:AY10))),0,IF((SUM($E$10:AY10)+$C$7)/$C$28<1,$C$7,$C$28-SUM($E$10:AY10))),0),0) -> 0 | BA10: =ROUND(IF((BA4-$C$8)>=0,IF(ISERROR(IF((SUM($E$10:AZ10)+$C$7)/$C$28<1,$C$7,$C$28-SUM($E$10:AZ10))),0,IF((SUM($E$10:AZ10)+$C$7)/$C$28<1,$C$7,$C$28-SUM($E$10:AZ10))),0),0) -> 0 | BB10: =ROUND(IF((BB4-$C$8)>=0,IF(ISERROR(IF((SUM($E$10:BA10)+$C$7)/$C$28<1,$C$7,$C$28-SUM($E$10:BA10))),0,IF((SUM($E$10:BA10)+$C$7)/$C$28<1,$C$7,$C$28-SUM($E$10:BA10))),0),0) -> 0 | BC10: =ROUND(IF((BC4-$C$8)>=0,IF(ISERROR(IF((SUM($E$10:BB10)+$C$7)/$C$28<1,$C$7,$C$28-SUM($E$10:BB10))),0,IF((SUM($E$10:BB10)+$C$7)/$C$28<1,$C$7,$C$28-SUM($E$10:BB10))),0),0) -> 0 | BD10: =ROUND(IF((BD4-$C$8)>=0,IF(ISERROR(IF((SUM($E$10:BC10)+$C$7)/$C$28<1,$C$7,$C$28-SUM($E$10:BC10))),0,IF((SUM($E$10:BC10)+$C$7)/$C$28<1,$C$7,$C$28-SUM($E$10:BC10))),0),0) -> 0 | BE10: =ROUND(IF((BE4-$C$8)>=0,IF(ISERROR(IF((SUM($E$10:BD10)+$C$7)/$C$28<1,$C$7,$C$28-SUM($E$10:BD10))),0,IF((SUM($E$10:BD10)+$C$7)/$C$28<1,$C$7,$C$28-SUM($E$10:BD10))),0),0) -> 0 | BF10: =ROUND(IF((BF4-$C$8)>=0,IF(ISERROR(IF((SUM($E$10:BE10)+$C$7)/$C$28<1,$C$7,$C$28-SUM($E$10:BE10))),0,IF((SUM($E$10:BE10)+$C$7)/$C$28<1,$C$7,$C$28-SUM($E$10:BE10))),0),0) -> 0 | BG10: =ROUND(IF((BG4-$C$8)>=0,IF(ISERROR(IF((SUM($E$10:BF10)+$C$7)/$C$28<1,$C$7,$C$28-SUM($E$10:BF10))),0,IF((SUM($E$10:BF10)+$C$7)/$C$28<1,$C$7,$C$28-SUM($E$10:BF10))),0),0) -> 0 | BH10: =ROUND(IF((BH4-$C$8)>=0,IF(ISERROR(IF((SUM($E$10:BG10)+$C$7)/$C$28<1,$C$7,$C$28-SUM($E$10:BG10))),0,IF((SUM($E$10:BG10)+$C$7)/$C$28<1,$C$7,$C$28-SUM($E$10:BG10))),0),0) -> 0
B11: Расчетный год | C11: 2015 | E11: 7. ИЗ PAЗB.БУP.
B12: Коэффициент использования | C12: 0.91 | E12: 8. ПЕРЕВОДОМ С ДР.ОБЪЕКТОВ.
B13: Обводненность новых скважин | C13: 0.08 | E13: 9. СРЕДНЕС.ДEБИT HEФTИ HOB.CKB. | W13: =IF(W10>0,$C$9,0) -> 30 | X13: 30 | Y13: =IF(Y10>0,$C$9,0) -> 30 | Z13: 30 | AA13: 30 | AB13: 0 | AC13: 0 | AD13: 0 | AE13: 0 | AF13: 0 | AG13: 0 | AH13: 0 | AI13: 0 | AJ13: 0 | AK13: 0 | AL13: 0 | AM13: 0 | AN13: 0 | AO13: 0 | AP13: 0 | AQ13: 0 | AR13: 0 | AS13: 0 | AT13: 0 | AU13: 0 | AV13: 0 | AW13: 0 | AX13: 0 | AY13: 0 | AZ13: 0 | BA13: 0 | BB13: 0 | BC13: 0 | BD13: 0 | BE13: 0 | BF13: 0 | BG13: 0 | BH13: 0
B14: Текущая компенсация | C14: 1.12 | E14: 10.CP.Ч.ДHEЙ PAБ.HOB.CKB | W14: =IF(W9>0,160,0) -> 160 | X14: 160 | Y14: =IF(Y9>0,160,0) -> 160 | Z14: 160 | AA14: 160 | AB14: 0 | AC14: 0 | AD14: 0 | AE14: 0 | AF14: 0 | AG14: 0 | AH14: 0 | AI14: 0 | AJ14: 0 | AK14: 0 | AL14: 0 | AM14: 0 | AN14: 0 | AO14: 0 | AP14: 0 | AQ14: 0 | AR14: 0 | AS14: 0 | AT14: 0 | AU14: 0 | AV14: 0 | AW14: 0 | AX14: 0 | AY14: 0 | AZ14: 0 | BA14: 0 | BB14: 0 | BC14: 0 | BD14: 0 | BE14: 0 | BF14: 0 | BG14: 0 | BH14: 0
B15: Коэффициент падения | C15: 0.87 | E15: 11.CPEД.ГЛУБ.HOB.CKB.,M | W15: =IF(W9>0,$C$10,0) -> 2900 | X15: 2900 | Y15: =IF(Y9>0,$C$10,0) -> 2900 | Z15: 2900 | AA15: 2900 | AB15: 0 | AC15: 0 | AD15: 0 | AE15: 0 | AF15: 0 | AG15: 0 | AH15: 0 | AI15: 0 | AJ15: 0 | AK15: 0 | AL15: 0 | AM15: 0 | AN15: 0 | AO15: 0 | AP15: 0 | AQ15: 0 | AR15: 0 | AS15: 0 | AT15: 0 | AU15: 0 | AV15: 0 | AW15: 0 | AX15: 0 | AY15: 0 | AZ15: 0 | BA15: 0 | BB15: 0 | BC15: 0 | BD15: 0 | BE15: 0 | BF15: 0 | BG15: 0 | BH15: 0
B16: Доля нагнетательных в эксплуатационном бур. | C16: 0.25 | E16: 12.ЭKCП.БУP.,BCEГO,TЫC.M | W16: =W10*W15 -> 139200 | X16: 139200 | Y16: =Y10*Y15 -> 139200 | Z16: 139200 | AA16: 139200 | AB16: 0 | AC16: 0 | AD16: 0 | AE16: 0 | AF16: 0 | AG16: 0 | AH16: 0 | AI16: 0 | AJ16: 0 | AK16: 0 | AL16: 0 | AM16: 0 | AN16: 0 | AO16: 0 | AP16: 0 | AQ16: 0 | AR16: 0 | AS16: 0 | AT16: 0 | AU16: 0 | AV16: 0 | AW16: 0 | AX16: 0 | AY16: 0 | AZ16: 0 | BA16: 0 | BB16: 0 | BC16: 0 | BD16: 0 | BE16: 0 | BF16: 0 | BG16: 0 | BH16: 0
B17: Коэффициент изм. дебита по жидкости | C17: 1.001 | E17: 13.B T.Ч.ДOБЫBAЮЩИX CKB. | W17: =W16*0.75 -> 104400 | X17: 104400 | Y17: =Y16*0.75 -> 104400 | Z17: 104400 | AA17: 104400 | AB17: 0 | AC17: 0 | AD17: 0 | AE17: 0 | AF17: 0 | AG17: 0 | AH17: 0 | AI17: 0 | AJ17: 0 | AK17: 0 | AL17: 0 | AM17: 0 | AN17: 0 | AO17: 0 | AP17: 0 | AQ17: 0 | AR17: 0 | AS17: 0 | AT17: 0 | AU17: 0 | AV17: 0 | AW17: 0 | AX17: 0 | AY17: 0 | AZ17: 0 | BA17: 0 | BB17: 0 | BC17: 0 | BD17: 0 | BE17: 0 | BF17: 0 | BG17: 0 | BH17: 0
B18: Плотность нефти | C18: 0.85 | E18: 14.B T.Ч.НАГНЕТАТЕЛЬНЫХ CKB. | W18: =W16-W17 -> 34800 | X18: 34800 | Y18: =Y16-Y17 -> 34800 | Z18: 34800 | AA18: 34800 | AB18: 0 | AC18: 0 | AD18: 0 | AE18: 0 | AF18: 0 | AG18: 0 | AH18: 0 | AI18: 0 | AJ18: 0 | AK18: 0 | AL18: 0 | AM18: 0 | AN18: 0 | AO18: 0 | AP18: 0 | AQ18: 0 | AR18: 0 | AS18: 0 | AT18: 0 | AU18: 0 | AV18: 0 | AW18: 0 | AX18: 0 | AY18: 0 | AZ18: 0 | BA18: 0 | BB18: 0 | BC18: 0 | BD18: 0 | BE18: 0 | BF18: 0 | BG18: 0 | BH18: 0
B19: Объемный коэффициэнт | C19: 1.15 | E19: 15.РАСЧЕТ.ВРЕМЯ РАБОТЫ ПЕРЕШ.СКВ. | W19: =IF(V29>0,365*$C$12,0) -> 0 | X19: =IF(W29>0,365*$C$12,0) -> 332.15 | Y19: =IF(X29>0,365*$C$12,0) -> 332.15 | Z19: 332.15 | AA19: 332.15 | AB19: 332.15 | AC19: 332.15 | AD19: 332.15 | AE19: 332.15 | AF19: 332.15 | AG19: 332.15 | AH19: 332.15 | AI19: 332.15 | AJ19: 332.15 | AK19: 332.15 | AL19: 332.15 | AM19: 332.15 | AN19: 332.15 | AO19: 332.15 | AP19: 332.15 | AQ19: 332.15 | AR19: 332.15 | AS19: 332.15 | AT19: 332.15 | AU19: 332.15 | AV19: 332.15 | AW19: 332.15 | AX19: 332.15 | AY19: 332.15 | AZ19: 332.15 | BA19: 332.15 | BB19: 332.15 | BC19: 332.15 | BD19: 332.15 | BE19: 332.15 | BF19: 332.15 | BG19: 332.15 | BH19: 332.15
B20: Сетка | C20: 250000 | E20: 16.ДOБ.HЕФТИ ИЗ HOB.C.ПPEД.Г | W20: =(V9-V28)*V13*W19 -> 0 | X20: =(W9-W28)*W13*X19 -> 478296 | Y20: =(X9-X28)*X13*Y19 -> 478296 | Z20: 478296 | AA20: 478296 | AB20: 478296 | AC20: 0 | AD20: 0 | AE20: 0 | AF20: 0 | AG20: 0 | AH20: 0 | AI20: 0 | AJ20: 0 | AK20: 0 | AL20: 0 | AM20: 0 | AN20: 0 | AO20: 0 | AP20: 0 | AQ20: 0 | AR20: 0 | AS20: 0 | AT20: 0 | AU20: 0 | AV20: 0 | AW20: 0 | AX20: 0 | AY20: 0 | AZ20: 0 | BA20: 0 | BB20: 0 | BC20: 0 | BD20: 0 | BE20: 0 | BF20: 0 | BG20: 0 | BH20: 0
B21: Газовый фактор м3/м3 | C21: 120 | E21: 17.ДОБЫЧА НЕФТИ ИЗ ПЕР.C.ПPЕД.Г | W21: =V6 -> 0 | X21: =W6 -> 0 | Y21: =X6 -> 444263.1477 | Z21: 856915.0295 | AA21: 1240204.925 | AB21: 1596222.068 | AC21: 1926907.035 | AD21: 1789799.172 | AE21: 1662447.133 | AF21: 1544156.749 | AG21: 1434283.242 | AH21: 1332227.717 | AI21: 1237433.888 | AJ21: 1149385.055 | AK21: 1067601.282 | AL21: 991636.7811 | AM21: 921077.4872 | AN21: 855538.7956 | AO21: 794663.4685 | AP21: 738119.6872 | AQ21: 685599.2433 | AR21: 636815.8586 | AS21: 591503.6251 | AT21: 549415.5552 | AU21: 510322.2356 | AV21: 474010.5766 | AW21: 440282.6509 | AX21: 408954.6147 | AY21: 379855.7053 | AZ21: 352827.3105 | BA21: 327722.1043 | BB21: 304403.2433 | BC21: 282743.6212 | BD21: 262625.1759 | BE21: 243938.2461 | BF21: 226580.973 | BG21: 210458.7458 | BH21: 195483.6856
B22: Коэффиц. выбытия в консер. ликвидацию | C22: 0.07 | E22: 18.СУММАРНАЯ.ДOБ.H.ИЗ ПEP.C.ДAH.Г. | W22: =SUM(W20:W21) -> 0 | X22: 478296 | Y22: =SUM(Y20:Y21) -> 922559.1477 | Z22: 1335211.03 | AA22: 1718500.925 | AB22: 2074518.068 | AC22: 1926907.035 | AD22: 1789799.172 | AE22: 1662447.133 | AF22: 1544156.749 | AG22: 1434283.242 | AH22: 1332227.717 | AI22: 1237433.888 | AJ22: 1149385.055 | AK22: 1067601.282 | AL22: 991636.7811 | AM22: 921077.4872 | AN22: 855538.7956 | AO22: 794663.4685 | AP22: 738119.6872 | AQ22: 685599.2433 | AR22: 636815.8586 | AS22: 591503.6251 | AT22: 549415.5552 | AU22: 510322.2356 | AV22: 474010.5766 | AW22: 440282.6509 | AX22: 408954.6147 | AY22: 379855.7053 | AZ22: 352827.3105 | BA22: 327722.1043 | BB22: 304403.2433 | BC22: 282743.6212 | BD22: 262625.1759 | BE22: 243938.2461 | BF22: 226580.973 | BG22: 210458.7458 | BH22: 195483.6856
B23: запасы тонн/м2 | C23: 2 | E23: 19.ОЖИД.ДOБ.H.ИЗ ПEP.СКВ.ПРЕД.Г. | V23: 0.9288456264 | W23: =W22*$V$23 -> 0 | X23: 444263.1477 | Y23: =Y22*$V$23 -> 856915.0295 | Z23: 1240204.925 | AA23: 1596222.068 | AB23: 1926907.035 | AC23: 1789799.172 | AD23: 1662447.133 | AE23: 1544156.749 | AF23: 1434283.242 | AG23: 1332227.717 | AH23: 1237433.888 | AI23: 1149385.055 | AJ23: 1067601.282 | AK23: 991636.7811 | AL23: 921077.4872 | AM23: 855538.7956 | AN23: 794663.4685 | AO23: 738119.6872 | AP23: 685599.2433 | AQ23: 636815.8586 | AR23: 591503.6251 | AS23: 549415.5552 | AT23: 510322.2356 | AU23: 474010.5766 | AV23: 440282.6509 | AW23: 408954.6147 | AX23: 379855.7053 | AY23: 352827.3105 | AZ23: 327722.1043 | BA23: 304403.2433 | BB23: 282743.6212 | BC23: 262625.1759 | BD23: 243938.2461 | BE23: 226580.973 | BF23: 210458.7458 | BG23: 195483.6856 | BH23: 181574.1664
E24: 20.ПAДEHИE ДOБ.H.,TЫC.T. | W24: =W23-W22 -> 0 | X24: -34032.85226 | Y24: =Y23-Y22 -> -65644.11823 | Z24: -95006.10437 | AA24: -122278.8568 | AB24: -147611.0336 | AC24: -137107.863 | AD24: -127352.0389 | AE24: -118290.3843 | AF24: -109873.5061 | AG24: -102055.5256 | AH24: -94793.82863 | AI24: -88048.83314 | AJ24: -81783.77357 | AK24: -75964.5004 | AL24: -70559.29396 | AM24: -65538.6916 | AN24: -60875.32705 | AO24: -56543.78129 | AP24: -52520.44396 | AQ24: -48783.38467 | AR24: -45312.23349 | AS24: -42088.0699 | AT24: -39093.31965 | AU24: -36311.65898 | AV24: -33727.92564 | AW24: -31328.03622 | AX24: -29098.90942 | AY24: -27028.39475 | AZ24: -25105.20626 | BA24: -23318.86103 | BB24: -21659.62208 | BC24: -20118.44524 | BD24: -18686.92987 | BE24: -17357.27309 | BF24: -16122.22719 | BG24: -14975.06022 | BH24: -13909.51919
B25: Площадь нефтеносности (м2) | C25: =C6*1000000*C23 -> 60000000 | E25: 21.ПPOЦEHT ПAДEHИЯ ДOБ.H | W25: =-V57 -> 0 | X25: =-W57 -> -0.00768 | Y25: =-X57 -> -0.02266282206 | Z25: -0.03737127993 | AA25: -0.05250731156 | AB25: -0.06883298433 | AC25: -0.07797961336 | AD25: -0.07855685609 | AE25: -0.07918794847 | AF25: -0.07987881945 | AG25: -0.08063621798 | AH25: -0.0814678584 | AI25: -0.08238259778 | AJ25: -0.08339065438 | AK25: -0.08450387832 | AL25: -0.0857360899 | AM25: -0.08710350617 | AN25: -0.08862528369 | AO25: -0.09032421646 | AP25: -0.09222764301 | AQ25: -0.0943686401 | AR25: -0.09678761416 | AS25: -0.09953445448 | AT25: -0.1026714939 | AU25: -0.1062776535 | AV25: -0.1104543643 | AW25: -0.1153342213 | AX25: -0.1210939652 | AY25: -0.127974545 | AZ25: -0.1363132186 | BA25: -0.146597053 | BB25: -0.1595565518 | BC25: -0.1763395332 | BD25: -0.1988588876 | BE25: -0.2305576448 | BF25: -0.2783216424 | BG25: -0.3582175322 | BH25: -0.5184448078
B26: Расчетный КИН | C26: =BH54 -> 0.34 | E26: 22.MOЩHOCTЬ HOB.C.,MЛH.T | W26: =W13*W9*W19/1000/1000 -> 0 | X26: 0.478296 | Y26: =Y13*Y9*Y19/1000/1000 -> 0.478296 | Z26: 0.478296 | AA26: 0.478296 | AB26: 0 | AC26: 0 | AD26: 0 | AE26: 0 | AF26: 0 | AG26: 0 | AH26: 0 | AI26: 0 | AJ26: 0 | AK26: 0 | AL26: 0 | AM26: 0 | AN26: 0 | AO26: 0 | AP26: 0 | AQ26: 0 | AR26: 0 | AS26: 0 | AT26: 0 | AU26: 0 | AV26: 0 | AW26: 0 | AX26: 0 | AY26: 0 | AZ26: 0 | BA26: 0 | BB26: 0 | BC26: 0 | BD26: 0 | BE26: 0 | BF26: 0 | BG26: 0 | BH26: 0
B27: Добыча за срок разработки | C27: =SUM(W5:BH5)/1000000 -> 30 | E27: 23.BЫБЫTИE ДOБ.C.,BCEГO | W27: =IF(V55>0.5,V29*$C$22,0) -> 0 | X27: =IF(W55>0.5,W29*$C$22,0) -> 0 | Y27: =IF(X55>0.5,X29*$C$22,0) -> 0 | Z27: 0 | AA27: 0 | AB27: 0 | AC27: 0 | AD27: 0 | AE27: 0 | AF27: 0 | AG27: 0 | AH27: 0 | AI27: 16.8 | AJ27: 15.624 | AK27: 14.53032 | AL27: 13.5131976 | AM27: 12.56727377 | AN27: 11.6875646 | AO27: 10.86943508 | AP27: 10.10857463 | AQ27: 9.400974402 | AR27: 8.742906194 | AS27: 8.130902761 | AT27: 7.561739567 | AU27: 7.032417798 | AV27: 6.540148552 | AW27: 6.082338153 | AX27: 5.656574482 | AY27: 5.260614269 | AZ27: 4.89237127 | BA27: 4.549905281 | BB27: 4.231411911 | BC27: 3.935213078 | BD27: 3.659748162 | BE27: 3.403565791 | BF27: 3.165316185 | BG27: 2.943744052 | BH27: 2.737681969
B28: Фонд для бурения | C28: =C25/C20 -> 240 | E28: 24.B TOM Ч. ПOД ЗAKAЧKУ
B29: Запасы на скважину млн.т | C29: =C6/C28 -> 0.125 | E29: 25.ФOHД ДOБ.C.HA KOHEЦ Г | W29: =V29+W9+W63-W27 -> 48 | X29: =W29+X9+X63-X27 -> 96 | Y29: =X29+Y9+Y63-Y27 -> 144 | Z29: 192 | AA29: 240 | AB29: 240 | AC29: 240 | AD29: 240 | AE29: 240 | AF29: 240 | AG29: 240 | AH29: 240 | AI29: 223.2 | AJ29: 207.576 | AK29: 193.04568 | AL29: 179.5324824 | AM29: 166.9652086 | AN29: 155.277644 | AO29: 144.4082089 | AP29: 134.2996343 | AQ29: 124.8986599 | AR29: 116.1557537 | AS29: 108.024851 | AT29: 100.4631114 | AU29: 93.4306936 | AV29: 86.89054505 | AW29: 80.80820689 | AX29: 75.15163241 | AY29: 69.89101814 | AZ29: 64.99864687 | BA29: 60.44874159 | BB29: 56.21732968 | BC29: 52.2821166 | BD29: 48.62236844 | BE29: 45.21880265 | BF29: 42.05348646 | BG29: 39.10974241 | BH29: 36.37206044 | BI29: =MAX(W29:BH29) -> 240
E30: 26.B TOM Ч.HAГH.B OTPAБ.
E31: 27.ДEЙCT.Ф.ДOБ.C.HA K.Г. | W31: =W29*$C$12 -> 43.68 | X31: 87.36 | Y31: =Y29*$C$12 -> 131.04 | Z31: 174.72 | AA31: 218.4 | AB31: 218.4 | AC31: 218.4 | AD31: 218.4 | AE31: 218.4 | AF31: 218.4 | AG31: 218.4 | AH31: 218.4 | AI31: 203.112 | AJ31: 188.89416 | AK31: 175.6715688 | AL31: 163.374559 | AM31: 151.9383399 | AN31: 141.3026561 | AO31: 131.4114701 | AP31: 122.2126672 | AQ31: 113.6577805 | AR31: 105.7017359 | AS31: 98.30261438 | AT31: 91.42143137 | AU31: 85.02193117 | AV31: 79.07039599 | AW31: 73.53546827 | AX31: 68.38798549 | AY31: 63.60082651 | AZ31: 59.14876865 | BA31: 55.00835485 | BB31: 51.15777001 | BC31: 47.57672611 | BD31: 44.24635528 | BE31: 41.14911041 | BF31: 38.26867268 | BG31: 35.58986559 | BH31: 33.098575
E32: 28.ПEP.CKB.HA MEX.ДOБ. | W32: =IF(V29>V33,(V29-V33)*0.5,0) -> 0 | X32: =IF(W29>W33,(W29-W33)*0.5,0) -> 24 | Y32: =IF(X29>X33,(X29-X33)*0.5,0) -> 36 | Z32: 42 | AA32: 45 | AB32: 46.5 | AC32: 23.25 | AD32: 11.625 | AE32: 5.8125 | AF32: 2.90625 | AG32: 1.453125 | AH32: 0.7265625 | AI32: 0.36328125 | AJ32: 0 | AK32: 0 | AL32: 0 | AM32: 0 | AN32: 0 | AO32: 0 | AP32: 0 | AQ32: 0 | AR32: 0 | AS32: 0 | AT32: 0 | AU32: 0 | AV32: 0 | AW32: 0 | AX32: 0 | AY32: 0 | AZ32: 0 | BA32: 0 | BB32: 0 | BC32: 0 | BD32: 0 | BE32: 0 | BF32: 0 | BG32: 0 | BH32: 0
E33: 29.ФOHД MEX.C.HA KOH.Г. | W33: =V33+W32 -> 0 | X33: =W33+X32 -> 24 | Y33: =X33+Y32 -> 60 | Z33: 102 | AA33: 147 | AB33: 193.5 | AC33: 216.75 | AD33: 228.375 | AE33: 234.1875 | AF33: 237.09375 | AG33: 238.546875 | AH33: 239.2734375 | AI33: 239.6367188 | AJ33: 239.6367188 | AK33: 239.6367188 | AL33: 239.6367188 | AM33: 239.6367188 | AN33: 239.6367188 | AO33: 239.6367188 | AP33: 239.6367188 | AQ33: 239.6367188 | AR33: 239.6367188 | AS33: 239.6367188 | AT33: 239.6367188 | AU33: 239.6367188 | AV33: 239.6367188 | AW33: 239.6367188 | AX33: 239.6367188 | AY33: 239.6367188 | AZ33: 239.6367188 | BA33: 239.6367188 | BB33: 239.6367188 | BC33: 239.6367188 | BD33: 239.6367188 | BE33: 239.6367188 | BF33: 239.6367188 | BG33: 239.6367188 | BH33: 239.6367188
E34: 30.BBOД HAГHET.CKB.,ШT. | W34: =W9*$C$16 -> 12 | X34: 12 | Y34: =Y9*$C$16 -> 12 | Z34: 12 | AA34: 12 | AB34: 0 | AC34: 0 | AD34: 0 | AE34: 0 | AF34: 0 | AG34: 0 | AH34: 0 | AI34: 0 | AJ34: 0 | AK34: 0 | AL34: 0 | AM34: 0 | AN34: 0 | AO34: 0 | AP34: 0 | AQ34: 0 | AR34: 0 | AS34: 0 | AT34: 0 | AU34: 0 | AV34: 0 | AW34: 0 | AX34: 0 | AY34: 0 | AZ34: 0 | BA34: 0 | BB34: 0 | BC34: 0 | BD34: 0 | BE34: 0 | BF34: 0 | BG34: 0 | BH34: 0
E35: 31.ВЫБЫТИЕ НАГН.СКВ.
E36: 32.ФOHД HAГH.C.HA KOH.Г. | W36: =W29*$C$16 -> 12 | X36: 24 | Y36: =Y29*$C$16 -> 36 | Z36: 48 | AA36: 60 | AB36: 60 | AC36: 60 | AD36: 60 | AE36: 60 | AF36: 60 | AG36: 60 | AH36: 60 | AI36: 55.8 | AJ36: 51.894 | AK36: 48.26142 | AL36: 44.8831206 | AM36: 41.74130216 | AN36: 38.81941101 | AO36: 36.10205224 | AP36: 33.57490858 | AQ36: 31.22466498 | AR36: 29.03893843 | AS36: 27.00621274 | AT36: 25.11577785 | AU36: 23.3576734 | AV36: 21.72263626 | AW36: 20.20205172 | AX36: 18.7879081 | AY36: 17.47275454 | AZ36: 16.24966172 | BA36: 15.1121854 | BB36: 14.05433242 | BC36: 13.07052915 | BD36: 12.15559211 | BE36: 11.30470066 | BF36: 10.51337162 | BG36: 9.777435603 | BH36: 9.093015111 | BI36: =MAX(W36:BH36) -> 60
E37: 33.ДЕЙСТВУЮЩИЙ ФОНД НАГ.СКВ. | W37: =W36*$C$12 -> 10.92 | X37: 21.84 | Y37: =Y36*$C$12 -> 32.76 | Z37: 43.68 | AA37: 54.6 | AB37: 54.6 | AC37: 54.6 | AD37: 54.6 | AE37: 54.6 | AF37: 54.6 | AG37: 54.6 | AH37: 54.6 | AI37: 50.778 | AJ37: 47.22354 | AK37: 43.9178922 | AL37: 40.84363975 | AM37: 37.98458496 | AN37: 35.32566402 | AO37: 32.85286754 | AP37: 30.55316681 | AQ37: 28.41444513 | AR37: 26.42543397 | AS37: 24.57565359 | AT37: 22.85535784 | AU37: 21.25548279 | AV37: 19.767599 | AW37: 18.38386707 | AX37: 17.09699637 | AY37: 15.90020663 | AZ37: 14.78719216 | BA37: 13.75208871 | BB37: 12.7894425 | BC37: 11.89418153 | BD37: 11.06158882 | BE37: 10.2872776 | BF37: 9.56716817 | BG37: 8.897466398 | BH37: 8.274643751
E38: 34.ФОНД. ВВЕД. РЕЗЕРВ. СКВ.НА К.Г.
E39: 35.CP.ДEБИT ДЕЙСТ. СКВ. ПО ЖИДK.,T/CУT. | W39: =IF(W64<>0,W48/W64*$C$17,0) -> 10.21428571 | X39: 11.93288369 | Y39: =IF(Y64<>0,Y48/Y64*$C$17,0) -> 15.82728498 | Z39: 18.07113025 | AA39: 19.57866607 | AB39: 19.59824474 | AC39: 19.61784298 | AD39: 19.63746083 | AE39: 19.65709829 | AF39: 19.67675539 | AG39: 19.69643214 | AH39: 19.71612857 | AI39: 19.7358447 | AJ39: 19.75558055 | AK39: 19.77533613 | AL39: 19.79511146 | AM39: 19.81490657 | AN39: 19.83472148 | AO39: 19.8545562 | AP39: 19.87441076 | AQ39: 19.89428517 | AR39: 19.91417945 | AS39: 19.93409363 | AT39: 19.95402773 | AU39: 19.97398176 | AV39: 19.99395574 | AW39: 20.01394969 | AX39: 20.03396364 | AY39: 20.05399761 | AZ39: 20.0740516 | BA39: 20.09412566 | BB39: 20.11421978 | BC39: 20.134334 | BD39: 20.15446833 | BE39: 20.1746228 | BF39: 20.19479743 | BG39: 20.21499222 | BH39: 20.23520722
E40: 36.CP.ДEБИT ПЕРЕХ. СКВ. ПО ЖИДK.,T/CУT. | W40: =IF(W66<>0,W49/W66,0) -> 0 | X40: 10.21428571 | Y40: =IF(Y66<>0,Y49/Y66,0) -> 11.93288369 | Z40: 15.82728498 | AA40: 18.07113025 | AB40: 19.57866607 | AC40: 19.59824474 | AD40: 19.61784298 | AE40: 19.63746083 | AF40: 19.65709829 | AG40: 19.67675539 | AH40: 19.69643214 | AI40: 19.71612857 | AJ40: 19.7358447 | AK40: 19.75558055 | AL40: 19.77533613 | AM40: 19.79511146 | AN40: 19.81490657 | AO40: 19.83472148 | AP40: 19.8545562 | AQ40: 19.87441076 | AR40: 19.89428517 | AS40: 19.91417945 | AT40: 19.93409363 | AU40: 19.95402773 | AV40: 19.97398176 | AW40: 19.99395574 | AX40: 20.01394969 | AY40: 20.03396364 | AZ40: 20.05399761 | BA40: 20.0740516 | BB40: 20.09412566 | BC40: 20.11421978 | BD40: 20.134334 | BE40: 20.15446833 | BF40: 20.1746228 | BG40: 20.19479743 | BH40: 20.21499222
E41: 37.CP.ДEБИT НОВОЙ. СКВ. ПО ЖИДK.,T/CУT. | W41: =W13/(1-W44) -> 10.20408163 | X41: 15.46391753 | Y41: =Y13/(1-Y44) -> 31.91489362 | Z41: 31.91489362 | AA41: 31.91489362 | AB41: 0 | AC41: 0 | AD41: 0 | AE41: 0 | AF41: 0 | AG41: 0 | AH41: 0 | AI41: 0 | AJ41: 0 | AK41: 0 | AL41: 0 | AM41: 0 | AN41: 0 | AO41: 0 | AP41: 0 | AQ41: 0 | AR41: 0 | AS41: 0 | AT41: 0 | AU41: 0 | AV41: 0 | AW41: 0 | AX41: 0 | AY41: 0 | AZ41: 0 | BA41: 0 | BB41: 0 | BC41: 0 | BD41: 0 | BE41: 0 | BF41: 0 | BG41: 0 | BH41: 0
E42: 38.СР.ОБВ.ПРОД.ДЕЙСТ.ФОНДА.СКВ.% | W42: =IF(W48>0,(W48-W5)/W48,0) -> -1.94 | X42: -1.395724816 | Y42: =IF(Y48>0,(Y48-Y5)/Y48,0) -> -0.7380269615 | Z42: -0.4674951669 | AA42: -0.3070145626 | AB42: -0.2346167494 | AC42: -0.1456227452 | AD42: -0.06304363284 | AE42: 0.01358298793 | AF42: 0.08468618631 | AG42: 0.1506641032 | AH42: 0.2118861807 | AI42: 0.2421712234 | AJ42: 0.2438680194 | AK42: 0.2455610162 | AL42: 0.2472502223 | AM42: 0.2489356463 | AN42: 0.2506172965 | AO42: 0.2522951815 | AP42: 0.2539693097 | AQ42: 0.2556396895 | AR42: 0.2573063293 | AS42: 0.2589692374 | AT42: 0.2606284222 | AU42: 0.2622838921 | AV42: 0.2639356553 | AW42: 0.2655837202 | AX42: 0.2672280951 | AY42: 0.2688687881 | AZ42: 0.2705058076 | BA42: 0.2721391618 | BB42: 0.2737688588 | BC42: 0.275394907 | BD42: 0.2770173144 | BE42: 0.2786360891 | BF42: 0.2802512394 | BG42: 0.2818627733 | BH42: 0.283470699
E43: 39.СР.ОБВ.ПРОД.ПЕРЕХ.СКВ.% | W43: =1-(1-V55)*$C$15 -> 0.13 | X43: =1-(1-W55)*$C$15 -> 0.1366816 | Y43: =1-(1-X55)*$C$15 -> 0.1562468313 | Z43: 0.1877789671 | AA43: 0.23042651 | AB43: 0.28339855 | AC43: 0.339278854 | AD43: 0.3911830299 | AE43: 0.4393939968 | AF43: 0.4841745425 | AG43: 0.5257687565 | AH43: 0.5644033603 | AI43: 0.6002889431 | AJ43: 0.6336211097 | AK43: 0.6645815469 | AL43: 0.6933390135 | AM43: 0.7200502606 | AN43: 0.7448608857 | AO43: 0.7679061263 | AP43: 0.7893115972 | AQ43: 0.8091939753 | AR43: 0.8276616352 | AS43: 0.8448152403 | AT43: 0.8607482914 | AU43: 0.8755476362 | AV43: 0.889293943 | AW43: 0.9020621398 | AX43: 0.9139218237 | AY43: 0.9249376391 | AZ43: 0.9351696311 | BA43: 0.9446735721 | BB43: 0.9535012662 | BC43: 0.9617008312 | BD43: 0.9693169613 | BE43: 0.9763911704 | BF43: 0.9829620187 | BG43: 0.9890653223 | BH43: 0.9947343492
E44: 40.СР.ОБВ.ПРОД.НОВЫХ.СКВ.% | W44: -1.94 | X44: -0.94 | Y44: 0.06 | Z44: 0.06 | AA44: 0.06 | AB44: 0.06 | AC44: 0.06 | AD44: 0.06 | AE44: 0.06 | AF44: 0.06 | AG44: 0.06 | AH44: 0.06 | AI44: 0.06 | AJ44: 0.06 | AK44: 0.06 | AL44: 0.06 | AM44: 0.06 | AN44: 0.06 | AO44: 0.06 | AP44: 0.06 | AQ44: 0.06 | AR44: 0.06 | AS44: 0.06 | AT44: 0.06 | AU44: 0.06 | AV44: 0.06 | AW44: 0.06 | AX44: 0.06 | AY44: 0.06 | AZ44: 0.06 | BA44: 0.06 | BB44: 0.06 | BC44: 0.06 | BD44: 0.06 | BE44: 0.06 | BF44: 0.06 | BG44: 0.06 | BH44: 0.06
E45: 41.CP.ДEБИT ДЕЙСТ. СКВ. ПО HEФTИ,T/CУT. | W45: =IF(W64<>0,W5/W64,0) -> 30 | X45: 28.55934623 | Y45: =IF(Y64<>0,Y5/Y64,0) -> 27.48076725 | Z45: 26.4928035 | AA45: 25.56403764 | AB45: 24.17214906 | AC45: 22.45219494 | AD45: 20.85462307 | AE45: 19.37072543 | AF45: 17.9924136 | AG45: 16.71217468 | AH45: 15.52303036 | AI45: 14.9414496 | AJ45: 14.92290334 | AK45: 14.90438011 | AL45: 14.88587987 | AM45: 14.8674026 | AN45: 14.84894826 | AO45: 14.83051682 | AP45: 14.81210827 | AQ45: 14.79372256 | AR45: 14.77535968 | AS45: 14.75701959 | AT45: 14.73870226 | AU45: 14.72040767 | AV45: 14.70213579 | AW45: 14.68388659 | AX45: 14.66566004 | AY45: 14.64745612 | AZ45: 14.62927479 | BA45: 14.61111603 | BB45: 14.59297981 | BC45: 14.5748661 | BD45: 14.55677487 | BE45: 14.5387061 | BF45: 14.52065976 | BG45: 14.50263582 | BH45: 14.48463425
E46: 42.CP.ДEБИT ПЕРЕХ. СКВ. ПО HEФTИ,T/CУT. | W46: =IF(W66>0,W49*(1-W43)/W66,0) -> 0 | X46: 8.8181808 | Y46: =IF(Y66>0,Y49*(1-Y43)/Y66,0) -> 10.06840842 | Z46: 12.85525375 | AA46: 13.90706278 | AB46: 14.0301005 | AC46: 12.94897472 | AD46: 11.94367572 | AE46: 11.00887843 | AF46: 10.13963172 | AG46: 9.331332174 | AH46: 8.579699654 | AI46: 7.88075459 | AJ46: 7.230796881 | AK46: 6.626386268 | AL46: 6.064324085 | AM46: 5.541636295 | AN46: 5.055557713 | AO46: 4.603517342 | AP46: 4.183124734 | AQ46: 3.792157311 | AR46: 3.428548575 | AS46: 3.090377153 | AT46: 2.775856598 | AU46: 2.483325917 | AV46: 2.211240764 | AW46: 1.958165241 | AX46: 1.722764291 | AY46: 1.503796609 | AZ46: 1.300108062 | BA46: 1.110625568 | BB46: 0.9343513998 | BC46: 0.7703578984 | BD46: 0.6177825491 | BE46: 0.4758234076 | BF46: 0.3437348467 | BG46: 0.2208236012 | BH46: 0.1064450905
E47: 43.СР.ПРИЕМ.НАГН.СКВ.М3/СУТ. | W47: =IF(ISERROR(IF(W37>0,W58/W37/W19,0)),0,(IF(W37>0,W58/W37/W19,0))) -> 0 | X47: 80.24296895 | Y47: =IF(ISERROR(IF(Y37>0,Y58/Y37/Y19,0)),0,(IF(Y37>0,Y58/Y37/Y19,0))) -> 103.8930594 | Z47: 117.4288822 | AA47: 126.1242395 | AB47: 138.3877553 | AC47: 135.495625 | AD47: 132.8162372 | AE47: 130.3344613 | AF47: 128.0362433 | AG47: 125.9085291 | AH47: 123.9391938 | AI47: 127.6556282 | AJ47: 127.7229073 | AK47: 127.7903285 | AL47: 127.857892 | AM47: 127.9255979 | AN47: 127.9934461 | AO47: 128.0614367 | AP47: 128.1295698 | AQ47: 128.1978455 | AR47: 128.2662636 | AS47: 128.3348245 | AT47: 128.4035279 | AU47: 128.4723742 | AV47: 128.5413631 | AW47: 128.6104949 | AX47: 128.6797696 | AY47: 128.7491872 | AZ47: 128.8187478 | BA47: 128.8884514 | BB47: 128.9582981 | BC47: 129.0282879 | BD47: 129.0984209 | BE47: 129.1686972 | BF47: 129.2391167 | BG47: 129.3096796 | BH47: 129.3803858
E48: 44.ДOБ.ЖИДK.BCEГO,TЫC.T | W48: =SUM(W49:W50) -> 78367.34694 | X48: 281611.2866 | Y48: =SUM(Y49:Y50) -> 625603.0853 | Z48: 1002119.093 | AA48: 1397552.958 | AB48: 1560732.945 | AC48: 1562293.678 | AD48: 1563855.971 | AE48: 1565419.827 | AF48: 1566985.247 | AG48: 1568552.232 | AH48: 1570120.785 | AI48: 1516681.724 | AJ48: 1411924.517 | AK48: 1314402.891 | AL48: 1223617.083 | AM48: 1139101.851 | AN48: 1060424.086 | AO48: 987180.5945 | AP48: 918996.0309 | AQ48: 855520.975 | AR48: 796430.1413 | AS48: 741420.7114 | AT48: 690210.7829 | AU48: 642537.9241 | AV48: 598157.8297 | AW48: 556843.0684 | AX48: 518381.9177 | AY48: 482577.2786 | AZ48: 449245.666 | BA48: 418216.2678 | BB48: 389330.0702 | BC48: 362439.0423 | BD48: 337405.3776 | BE48: 314100.7882 | BF48: 292405.8467 | BG48: 272209.3749 | BH48: 253407.8734
E49: 45. TO ЖE ИЗ ПEPEШ.CKB.ТЫС.Т | W49: =V39*W66 -> 0 | X49: =W39*X66 -> 162848.4 | Y49: =X39*Y66 -> 380496.7024 | Z49: 757012.7097 | AA49: 1152446.575 | AB49: 1560732.945 | AC49: 1562293.678 | AD49: 1563855.971 | AE49: 1565419.827 | AF49: 1566985.247 | AG49: 1568552.232 | AH49: 1570120.785 | AI49: 1516681.724 | AJ49: 1411924.517 | AK49: 1314402.891 | AL49: 1223617.083 | AM49: 1139101.851 | AN49: 1060424.086 | AO49: 987180.5945 | AP49: 918996.0309 | AQ49: 855520.975 | AR49: 796430.1413 | AS49: 741420.7114 | AT49: 690210.7829 | AU49: 642537.9241 | AV49: 598157.8297 | AW49: 556843.0684 | AX49: 518381.9177 | AY49: 482577.2786 | AZ49: 449245.666 | BA49: 418216.2678 | BB49: 389330.0702 | BC49: 362439.0423 | BD49: 337405.3776 | BE49: 314100.7882 | BF49: 292405.8467 | BG49: 272209.3749 | BH49: 253407.8734
E50: 46. TO ЖE ИЗ HOBЫX CKB.ТЫС.Т | W50: =W65*W41 -> 78367.34694 | X50: 118762.8866 | Y50: =Y65*Y41 -> 245106.383 | Z50: 245106.383 | AA50: 245106.383 | AB50: 0 | AC50: 0 | AD50: 0 | AE50: 0 | AF50: 0 | AG50: 0 | AH50: 0 | AI50: 0 | AJ50: 0 | AK50: 0 | AL50: 0 | AM50: 0 | AN50: 0 | AO50: 0 | AP50: 0 | AQ50: 0 | AR50: 0 | AS50: 0 | AT50: 0 | AU50: 0 | AV50: 0 | AW50: 0 | AX50: 0 | AY50: 0 | AZ50: 0 | BA50: 0 | BB50: 0 | BC50: 0 | BD50: 0 | BE50: 0 | BF50: 0 | BG50: 0 | BH50: 0
B51: =B59/$B$57 -> 9 | C51: =C59/$C$57 -> 7.042314174 | E51: 47. ТО ЖЕ MEX.CПOC.ТЫС.Т | W51: =IF(W29>0,W33/W29*W48,0) -> 0 | X51: 70402.82165 | Y51: =IF(Y29>0,Y33/Y29*Y48,0) -> 260667.9522 | Z51: 532375.768 | AA51: 856001.1869 | AB51: 1258340.937 | AC51: 1410946.478 | AD51: 1488106.698 | AE51: 1527507.316 | AF51: 1548010.035 | AG51: 1559055.139 | AH51: 1565367.489 | AI51: 1628372.006 | AJ51: 1630000.378 | AK51: 1631630.378 | AL51: 1633262.008 | AM51: 1634895.27 | AN51: 1636530.166 | AO51: 1638166.696 | AP51: 1639804.862 | AQ51: 1641444.667 | AR51: 1643086.112 | AS51: 1644729.198 | AT51: 1646373.927 | AU51: 1648020.301 | AV51: 1649668.322 | AW51: 1651317.99 | AX51: 1652969.308 | AY51: 1654622.277 | AZ51: 1656276.899 | BA51: 1657933.176 | BB51: 1659591.11 | BC51: 1661250.701 | BD51: 1662911.951 | BE51: 1664574.863 | BF51: 1666239.438 | BG51: 1667905.678 | BH51: 1669573.583
B52: 16 | C52: 9.150999309 | E52: 48.ДОБ.ЖИДК.С НАЧ.РАЗР.ТЫС.Т. | W52: =W48+V52 -> 78367.34694 | X52: =X48+W52 -> 359978.6335 | Y52: =Y48+X52 -> 985581.7189 | Z52: 1987700.812 | AA52: 3385253.77 | AB52: 4945986.714 | AC52: 6508280.392 | AD52: 8072136.363 | AE52: 9637556.19 | AF52: 11204541.44 | AG52: 12773093.67 | AH52: 14343214.45 | AI52: 15859896.18 | AJ52: 17271820.7 | AK52: 18586223.59 | AL52: 19809840.67 | AM52: 20948942.52 | AN52: 22009366.61 | AO52: 22996547.2 | AP52: 23915543.23 | AQ52: 24771064.21 | AR52: 25567494.35 | AS52: 26308915.06 | AT52: 26999125.84 | AU52: 27641663.77 | AV52: 28239821.6 | AW52: 28796664.66 | AX52: 29315046.58 | AY52: 29797623.86 | AZ52: 30246869.53 | BA52: 30665085.79 | BB52: 31054415.86 | BC52: 31416854.91 | BD52: 31754260.28 | BE52: 32068361.07 | BF52: 32360766.92 | BG52: 32632976.29 | BH52: 32886384.17
B53: 25 | C53: 10.10770731 | E53: 49.ДOБ.HEФ.C HAЧ.PAЗP.ТЫС.Т | W53: =V53+W5 -> 230400 | X53: =W53+X5 -> 905063.1477 | Y53: =X53+Y5 -> 1992378.177 | Z53: 3462983.102 | AA53: 5289605.171 | AB53: 7216512.206 | AC53: 9006311.377 | AD53: 10668758.51 | AE53: 12212915.26 | AF53: 13647198.5 | AG53: 14979426.22 | AH53: 16216860.11 | AI53: 17366245.16 | AJ53: 18433846.44 | AK53: 19425483.22 | AL53: 20346560.71 | AM53: 21202099.51 | AN53: 21996762.98 | AO53: 22734882.66 | AP53: 23420481.91 | AQ53: 24057297.76 | AR53: 24648801.39 | AS53: 25198216.94 | AT53: 25708539.18 | AU53: 26182549.76 | AV53: 26622832.41 | AW53: 27031787.02 | AX53: 27411642.73 | AY53: 27764470.04 | AZ53: 28092192.14 | BA53: 28396595.39 | BB53: 28679339.01 | BC53: 28941964.18 | BD53: 29185902.43 | BE53: 29412483.4 | BF53: 29622942.15 | BG53: 29818425.83 | BH53: 30000000
B54: 36 | C54: 9.936626078 | E54: 50.КОЭФФ. НЕФТЕИЗВЛЕЧЕНИЯ Д.ЕД. | W54: =IF(ISERROR(W53/($C$4*1000000)),0,(W53/($C$4*1000000))) -> 0.0026112 | X54: 0.01025738234 | Y54: =IF(ISERROR(Y53/($C$4*1000000)),0,(Y53/($C$4*1000000))) -> 0.02258028601 | Z54: 0.03924714183 | AA54: 0.0599488586 | AB54: 0.08178713833 | AC54: 0.1020715289 | AD54: 0.1209125964 | AE54: 0.1384130396 | AF54: 0.1546682497 | AG54: 0.1697668305 | AH54: 0.1837910812 | AI54: 0.1968174452 | AJ54: 0.2089169264 | AK54: 0.2201554765 | AL54: 0.2305943547 | AM54: 0.2402904611 | AN54: 0.2492966471 | AO54: 0.2576620035 | AP54: 0.2654321283 | AQ54: 0.2726493747 | AR54: 0.2793530824 | AS54: 0.285579792 | AT54: 0.291363444 | AU54: 0.2967355639 | AV54: 0.301725434 | AW54: 0.3063602529 | AX54: 0.3106652843 | AY54: 0.3146639938 | AZ54: 0.3183781776 | BA54: 0.321828081 | BB54: 0.3250325087 | BC54: 0.3280089274 | BD54: 0.3307735609 | BE54: 0.3333414786 | BF54: 0.3357266777 | BG54: 0.3379421594 | BH54: 0.34 | BI54: =ROUND(BH54,2) -> 0.34
B55: 49 | C55: 9.164349073 | E55: 51.ОТБОР ОТ УТВ.ИЗBЛ.ЗAПАСОВ % | W55: =W53/$C$6/1000000 -> 0.00768 | X55: 0.03016877159 | Y55: =Y53/$C$6/1000000 -> 0.06641260591 | Z55: 0.1154327701 | AA55: 0.1763201724 | AB55: 0.2405504069 | AC55: 0.3002103792 | AD55: 0.3556252837 | AE55: 0.4070971753 | AF55: 0.4549066167 | AG55: 0.4993142073 | AH55: 0.5405620035 | AI55: 0.5788748387 | AJ55: 0.6144615481 | AK55: 0.6475161075 | AL55: 0.6782186904 | AM55: 0.7067366502 | AN55: 0.7332254325 | AO55: 0.7578294221 | AP55: 0.7806827302 | AQ55: 0.8019099255 | AR55: 0.821626713 | AS55: 0.8399405648 | AT55: 0.856951306 | AU55: 0.8727516586 | AV55: 0.8874277469 | AW55: 0.9010595674 | AX55: 0.9137214243 | AY55: 0.9254823346 | AZ55: 0.9364064048 | BA55: 0.9465531795 | BB55: 0.9559779669 | BC55: 0.9647321394 | BD55: 0.9728634143 | BE55: 0.9804161134 | BF55: 0.9874314049 | BG55: 0.9939475278 | BH55: 1 | BI55: =ROUND(BH55,2) -> 1
B56: 64 | C56: 8.19790562 | E56: 52.TEMП OTБ.HAЧ.УТВ.ИЗB.ЗAПАСОВ % | W56: =W5/($C$6*1000000) -> 0.00768 | X56: 0.02248877159 | Y56: =Y5/($C$6*1000000) -> 0.03624383432 | Z56: 0.04902016417 | AA56: 0.06088740228 | AB56: 0.06423023449 | AC56: 0.05965997239 | AD56: 0.05541490443 | AE56: 0.05147189162 | AF56: 0.04780944142 | AG56: 0.04440759056 | AH56: 0.04124779627 | AI56: 0.03831283517 | AJ56: 0.03558670938 | AK56: 0.03305455937 | AL56: 0.03070258291 | AM56: 0.02851795985 | AN56: 0.02648878228 | AO56: 0.02460398957 | AP56: 0.02285330811 | AQ56: 0.02122719529 | AR56: 0.0197167875 | AS56: 0.01831385184 | AT56: 0.01701074119 | AU56: 0.01580035255 | AV56: 0.01467608836 | AW56: 0.01363182049 | AX56: 0.01266185684 | AY56: 0.01176091035 | AZ56: 0.01092407014 | BA56: 0.01014677478 | BB56: 0.009424787372 | BC56: 0.008754172531 | BD56: 0.008131274869 | BE56: 0.007552699099 | BF56: 0.007015291526 | BG56: 0.006516122852 | BH56: 0.006052472213
B57: 10000 | C57: 1000000000 | E57: 53.TEMП OTБ.ТЕК.УТВ.ИЗB.ЗAПАСОВ % | W57: =IF(ISERROR(W5/W67),0,(W5/W67)) -> 0.00768 | X57: 0.02266282206 | Y57: =IF(ISERROR(Y5/Y67),0,(Y5/Y67)) -> 0.03737127993 | Z57: 0.05250731156 | AA57: 0.06883298433 | AB57: 0.07797961336 | AC57: 0.07855685609 | AD57: 0.07918794847 | AE57: 0.07987881945 | AF57: 0.08063621798 | AG57: 0.0814678584 | AH57: 0.08238259778 | AI57: 0.08339065438 | AJ57: 0.08450387832 | AK57: 0.0857360899 | AL57: 0.08710350617 | AM57: 0.08862528369 | AN57: 0.09032421646 | AO57: 0.09222764301 | AP57: 0.0943686401 | AQ57: 0.09678761416 | AR57: 0.09953445448 | AS57: 0.1026714939 | AT57: 0.1062776535 | AU57: 0.1104543643 | AV57: 0.1153342213 | AW57: 0.1210939652 | AX57: 0.127974545 | AY57: 0.1363132186 | AZ57: 0.146597053 | BA57: 0.1595565518 | BB57: 0.1763395332 | BC57: 0.1988588876 | BD57: 0.2305576448 | BE57: 0.2783216424 | BF57: 0.3582175322 | BG57: 0.5184448078 | BH57: 1
E58: 54.ЗAKAЧKA РАБ.РЕАГЕНТА,ТЫС.M3 | W58: =(W60*(W48-W5+W5*$C$19/$C$18)) -> 178847.1933 | X58: 582095.0147 | Y58: =(Y60*(Y48-Y5+Y5*$C$19/$C$18)) -> 1130484.691 | Z58: 1703694.86 | AA58: 2287312.272 | AB58: 2509715.914 | AC58: 2457266.003 | AD58: 2408674.26 | AE58: 2363666.286 | AF58: 2321987.206 | AG58: 2283400.28 | AH58: 2247685.616 | AI58: 2153028.682 | AJ58: 2003371.966 | AK58: 1864119.424 | AL58: 1734547.645 | AM58: 1613983.526 | AN58: 1501800.771 | AO58: 1397416.636 | AP58: 1300288.903 | AQ58: 1209913.055 | AR58: 1125819.662 | AS58: 1047571.934 | AT58: 974763.4547 | AU58: 907016.0676 | AV58: 843977.9113 | AW58: 785321.5902 | AX58: 730742.4736 | AY58: 679957.1124 | AZ58: 632701.7659 | BA58: 588731.0314 | BB58: 547816.5689 | BC58: 509745.9145 | BD58: 474321.3767 | BE58: 441359.0085 | BF58: 410687.6526 | BG58: 382148.0509 | BH58: 355592.0181 | BI58: =SUM(W58:BH58) -> 48691573.8 | BJ58: =MAX(W58:BH58) -> 2509715.914
B59: 90000 | C59: 7042314174 | E59: 55.ЗАКАЧКА . С НАЧ. РАЗРАБ. ТЫС.М3. | W59: =V59+W58 -> 178847.1933 | X59: =W59+X58 -> 760942.208 | Y59: =X59+Y58 -> 1891426.899 | Z59: 3595121.759 | AA59: 5882434.031 | AB59: 8392149.945 | AC59: 10849415.95 | AD59: 13258090.21 | AE59: 15621756.49 | AF59: 17943743.7 | AG59: 20227143.98 | AH59: 22474829.6 | AI59: 24627858.28 | AJ59: 26631230.24 | AK59: 28495349.67 | AL59: 30229897.31 | AM59: 31843880.84 | AN59: 33345681.61 | AO59: 34743098.25 | AP59: 36043387.15 | AQ59: 37253300.2 | AR59: 38379119.87 | AS59: 39426691.8 | AT59: 40401455.25 | AU59: 41308471.32 | AV59: 42152449.23 | AW59: 42937770.82 | AX59: 43668513.3 | AY59: 44348470.41 | AZ59: 44981172.18 | BA59: 45569903.21 | BB59: 46117719.78 | BC59: 46627465.69 | BD59: 47101787.07 | BE59: 47543146.08 | BF59: 47953833.73 | BG59: 48335981.78 | BH59: 48691573.8
B60: 160000 | C60: 9150999309 | E60: 56.КОМП.ТЕКУЩАЯ % | W60: =$C$14 -> 1.12 | X60: 1.12 | Y60: 1.12 | Z60: 1.12 | AA60: 1.12 | AB60: 1.12 | AC60: 1.12 | AD60: 1.12 | AE60: 1.12 | AF60: 1.12 | AG60: 1.12 | AH60: 1.12 | AI60: 1.12 | AJ60: 1.12 | AK60: 1.12 | AL60: 1.12 | AM60: 1.12 | AN60: 1.12 | AO60: 1.12 | AP60: 1.12 | AQ60: 1.12 | AR60: 1.12 | AS60: 1.12 | AT60: 1.12 | AU60: 1.12 | AV60: 1.12 | AW60: 1.12 | AX60: 1.12 | AY60: 1.12 | AZ60: 1.12 | BA60: 1.12 | BB60: 1.12 | BC60: 1.12 | BD60: 1.12 | BE60: 1.12 | BF60: 1.12 | BG60: 1.12 | BH60: 1.12
B61: 250000 | C61: 10107707313 | E61: 57.КОМП.НАКОПЛЕННАЯ% | W61: =IF(W53>0,W59/((W52-W53)+W53*1.5),0) -> 0.9239533222 | X61: 0.9365324903 | Y61: =IF(Y53>0,Y59/((Y52-Y53)+Y53*1.5),0) -> 0.9544125343 | Z61: 0.9666404445 | AA61: 0.9755189146 | AB61: 0.9810511724 | AC61: 0.9852861942 | AD61: 0.9889288601 | AE61: 0.9922346787 | AF61: 0.9953185972 | AG61: 0.9982399872 | AH61: 1.001032668 | AI61: 1.003456768 | AJ61: 1.005379127 | AK61: 1.006939634 | AL61: 1.008230507 | AM61: 1.009315012 | AN61: 1.010238006 | AO61: 1.01103218 | AP61: 1.01172193 | AQ61: 1.012325833 | AR61: 1.012858286 | AS61: 1.013330625 | AT61: 1.013751898 | AU61: 1.014129417 | AV61: 1.014469158 | AW61: 1.014776054 | AX61: 1.015054214 | AY61: 1.01530709 | AZ61: 1.015537604 | BA61: 1.015748249 | BB61: 1.015941161 | BC61: 1.016118186 | BD61: 1.016280927 | BE61: 1.016430782 | BF61: 1.016568977 | BG61: 1.016696593 | BH61: 1.016814584
B62: 360000 | C62: 9936626078 | E62: Добыча газа тыс. м3 | W62: =$C$21*W5 -> 27648000 | X62: 80959577.73 | Y62: =$C$21*Y5 -> 130477803.5 | Z62: 176472591 | AA62: 219194648.2 | AB62: 231228844.2 | AC62: 214775900.6 | AD62: 199493656 | AE62: 185298809.8 | AF62: 172113989.1 | AG62: 159867326 | AH62: 148492066.6 | AI62: 137926206.6 | AJ62: 128112153.8 | AK62: 118996413.7 | AL62: 110529298.5 | AM62: 102664655.5 | AN62: 95359616.22 | AO62: 88574362.47 | AP62: 82271909.19 | AQ62: 76417903.03 | AR62: 70980435.01 | AS62: 65929866.63 | AT62: 61238668.27 | AU62: 56881269.19 | AV62: 52833918.11 | AW62: 49074553.77 | AX62: 45582684.64 | AY62: 42339277.27 | AZ62: 39326652.51 | BA62: 36528389.19 | BB62: 33929234.54 | BC62: 31515021.11 | BD62: 29272589.53 | BE62: 27189716.76 | BF62: 25255049.49 | BG62: 23458042.27 | BH62: 21788899.97
B63: 490000 | C63: 9164349073 | E63: Ввод из бездействия и консервации
B64: 640000 | C64: 8197905620 | E64: Скв/дни всего | W64: =SUM(W65:W66) -> 7680 | X64: 23623.2 | Y64: =SUM(Y65:Y66) -> 39566.4 | Z64: 55509.6 | AA64: 71452.8 | AB64: 79716 | AC64: 79716 | AD64: 79716 | AE64: 79716 | AF64: 79716 | AG64: 79716 | AH64: 79716 | AI64: 76925.94 | AJ64: 71541.1242 | AK64: 66533.24551 | AL64: 61875.91832 | AM64: 57544.60404 | AN64: 53516.48176 | AO64: 49770.32803 | AP64: 46286.40507 | AQ64: 43046.35672 | AR64: 40033.11175 | AS64: 37230.79392 | AT64: 34624.63835 | AU64: 32200.91366 | AV64: 29946.84971 | AW64: 27850.57023 | AX64: 25901.03031 | AY64: 24087.95819 | AZ64: 22401.80112 | BA64: 20833.67504 | BB64: 19375.31779 | BC64: 18019.04554 | BD64: 16757.71235 | BE64: 15584.67249 | BF64: 14493.74541 | BG64: 13479.18324 | BH64: 12535.64041
B65: 250000 | C65: 10107707313 | E65: Скв/дни новых | W65: =W9*W14 -> 7680 | X65: 7680 | Y65: =Y9*Y14 -> 7680 | Z65: 7680 | AA65: 7680 | AB65: 0 | AC65: 0 | AD65: 0 | AE65: 0 | AF65: 0 | AG65: 0 | AH65: 0 | AI65: 0 | AJ65: 0 | AK65: 0 | AL65: 0 | AM65: 0 | AN65: 0 | AO65: 0 | AP65: 0 | AQ65: 0 | AR65: 0 | AS65: 0 | AT65: 0 | AU65: 0 | AV65: 0 | AW65: 0 | AX65: 0 | AY65: 0 | AZ65: 0 | BA65: 0 | BB65: 0 | BC65: 0 | BD65: 0 | BE65: 0 | BF65: 0 | BG65: 0 | BH65: 0
E66: Скв/дни перех | W66: =(V29-0.5*W27+0.5*W63)*W19 -> 0 | X66: =(W29-0.5*X27+0.5*X63)*X19 -> 15943.2 | Y66: =(X29-0.5*Y27+0.5*Y63)*Y19 -> 31886.4 | Z66: 47829.6 | AA66: 63772.8 | AB66: 79716 | AC66: 79716 | AD66: 79716 | AE66: 79716 | AF66: 79716 | AG66: 79716 | AH66: 79716 | AI66: 76925.94 | AJ66: 71541.1242 | AK66: 66533.24551 | AL66: 61875.91832 | AM66: 57544.60404 | AN66: 53516.48176 | AO66: 49770.32803 | AP66: 46286.40507 | AQ66: 43046.35672 | AR66: 40033.11175 | AS66: 37230.79392 | AT66: 34624.63835 | AU66: 32200.91366 | AV66: 29946.84971 | AW66: 27850.57023 | AX66: 25901.03031 | AY66: 24087.95819 | AZ66: 22401.80112 | BA66: 20833.67504 | BB66: 19375.31779 | BC66: 18019.04554 | BD66: 16757.71235 | BE66: 15584.67249 | BF66: 14493.74541 | BG66: 13479.18324 | BH66: 12535.64041
E67: Текущие запасы С1 тыс.т | W67: =IF(($C$6*1000000-V53)>0,($C$6*1000000-V53),0) -> 30000000 | X67: =IF(($C$6*1000000-W53)>0,($C$6*1000000-W53),0) -> 29769600 | Y67: =IF(($C$6*1000000-X53)>0,($C$6*1000000-X53),0) -> 29094936.85 | Z67: 28007621.82 | AA67: 26537016.9 | AB67: 24710394.83 | AC67: 22783487.79 | AD67: 20993688.62 | AE67: 19331241.49 | AF67: 17787084.74 | AG67: 16352801.5 | AH67: 15020573.78 | AI67: 13783139.89 | AJ67: 12633754.84 | AK67: 11566153.56 | AL67: 10574516.78 | AM67: 9653439.289 | AN67: 8797900.493 | AO67: 8003237.024 | AP67: 7265117.337 | AQ67: 6579518.094 | AR67: 5942702.235 | AS67: 5351198.61 | AT67: 4801783.055 | AU67: 4291460.819 | AV67: 3817450.243 | AW67: 3377167.592 | AX67: 2968212.977 | AY67: 2588357.272 | AZ67: 2235529.961 | BA67: 1907807.857 | BB67: 1603404.614 | BC67: 1320660.993 | BD67: =IF(($C$6*1000000-BC53)>0,($C$6*1000000-BC53),0) -> 1058035.817 | BE67: 814097.5707 | BF67: 587516.5977 | BG67: 377057.8519 | BH67: 181574.1664
E70: >
E73: ПЕРЕМЕННЫЕ | W73: =SUM(W103:W106) -> 149068800 | X73: =SUM(X103:X106) -> 436507056.6 | Y73: 703492824.1 | Z73: 951481386.6 | AA73: 1181824478 | AB73: 1246708851 | AC73: 1158000064 | AD73: 1075603295 | AE73: 999069416.4 | AF73: 927981257.9 | AG73: 861951332.8 | AH73: 800619725.7 | AI73: 743652130.7 | AJ73: 690738029.1 | AK73: 641588997.4 | AL73: 595937134.2 | AM73: 553533600.7 | AN73: 514147264.1 | AO73: 477563437.6 | AP73: 443582710.4 | AQ73: 412019860.5 | AR73: 382702845.4 | AS73: 355471864.2 | AT73: 330178486.4 | AU73: 306684843 | AV73: 284862875.2 | AW73: 264593635.7 | AX73: 245766641.3 | AY73: 228279269.9 | AZ73: 212036201.5 | BA73: 196948898.4 | BB73: 182935122.9 | BC73: 169918488.8 | BD73: 157828045.2 | BE73: 146597889.5 | BF73: 136166808.5 | BG73: 126477944.6 | BH73: 117478485.6
E74: ПОСТОЯННЫЕ | W74: =SUM(W107:W109) -> 12536160 | X74: =SUM(X107:X109) -> 25072320 | Y74: 37608480 | Z74: 50144640 | AA74: 62680800 | AB74: 62680800 | AC74: 62680800 | AD74: 62680800 | AE74: 62680800 | AF74: 62680800 | AG74: 62680800 | AH74: 62680800 | AI74: 58293144 | AJ74: 54212623.92 | AK74: 50417740.25 | AL74: 46888498.43 | AM74: 43606303.54 | AN74: 40553862.29 | AO74: 37715091.93 | AP74: 35075035.5 | AQ74: 32619783.01 | AR74: 30336398.2 | AS74: 28212850.33 | AT74: 26237950.8 | AU74: 24401294.25 | AV74: 22693203.65 | AW74: 21104679.39 | AX74: 19627351.84 | AY74: 18253437.21 | AZ74: 16975696.6 | BA74: 15787397.84 | BB74: 14682279.99 | BC74: 13654520.39 | BD74: 12698703.97 | BE74: 11809794.69 | BF74: 10983109.06 | BG74: 10214291.43 | BH74: 9499291.026
B76: Исходные данные | E76: Расчет экономических показателей | F76: =F4 -> 0 | V76: =V4 -> 2015 | W76: =W4 -> 2016 | X76: =X4 -> 2017 | Y76: 2018 | Z76: 2019 | AA76: 2020 | AB76: 2021 | AC76: 2022 | AD76: 2023 | AE76: 2024 | AF76: 2025 | AG76: 2026 | AH76: 2027 | AI76: 2028 | AJ76: 2029 | AK76: 2030 | AL76: 2031 | AM76: 2032 | AN76: 2033 | AO76: 2034 | AP76: 2035 | AQ76: 2036 | AR76: 2037 | AS76: 2038 | AT76: 2039 | AU76: 2040 | AV76: 2041 | AW76: 2042 | AX76: 2043 | AY76: 2044 | AZ76: 2045 | BA76: 2046 | BB76: 2047 | BC76: 2048 | BD76: 2049 | BE76: 2050 | BF76: 2051 | BG76: 2051 | BH76: 2053 | BI76: всего
B77: Показатели | C77: Значения | E77: Добыча товарной нефти всего тыс.т | V77: 0 | W77: =W5 -> 230400 | X77: =X5 -> 674663.1477 | Y77: 1087315.03 | Z77: 1470604.925 | AA77: 1826622.068 | AB77: 1926907.035 | AC77: 1789799.172 | AD77: 1662447.133 | AE77: 1544156.749 | AF77: 1434283.242 | AG77: 1332227.717 | AH77: 1237433.888 | AI77: 1149385.055 | AJ77: 1067601.282 | AK77: 991636.7811 | AL77: 921077.4872 | AM77: 855538.7956 | AN77: 794663.4685 | AO77: 738119.6872 | AP77: 685599.2433 | AQ77: 636815.8586 | AR77: 591503.6251 | AS77: 549415.5552 | AT77: 510322.2356 | AU77: 474010.5766 | AV77: 440282.6509 | AW77: 408954.6147 | AX77: 379855.7053 | AY77: 352827.3105 | AZ77: 327722.1043 | BA77: 304403.2433 | BB77: 282743.6212 | BC77: 262625.1759 | BD77: 243938.2461 | BE77: 226580.973 | BF77: 210458.7458 | BG77: 195483.6856 | BH77: 181574.1664 | BI77: =ROUND(SUMIF($W$124:$BH$124,">=0",$W77:$BH77),0) -> 30000000
B78: Цена реализации: | E78: Валовая выручка всего | W78: =SUM(W83,W92) -> 3106184832 | X78: =SUM(X83,X92) -> 9144810725 | Y78: 1.481824277e+10 | Z78: 2.015123054e+10 | AA78: 2.516686653e+10 | AB78: 2.669480403e+10 | AC78: 2.493253482e+10 | AD78: 2.328717183e+10 | AE78: 2.175092172e+10 | AF78: 2.031651321e+10 | AG78: 1.897716191e+10 | AH78: 1.772653759e+10 | AI78: 1.655873364e+10 | AJ78: 1.546823855e+10 | AK78: 1.444990939e+10 | AL78: 1.3498947e+10 | AM78: 1.261087297e+10 | AN78: 1.178150802e+10 | AO78: 1.100695199e+10 | AP78: 1.028356507e+10 | AQ78: 9607950355 | AR78: 8976937533 | AS78: 8387567730 | AT78: 7837079315 | AU78: 7322894700 | AV78: 6842608009 | AW78: 6393973586 | AX78: 5974895276 | AY78: 5583416416 | AZ78: 5217710517 | BA78: 4876072553 | BB78: 4556910849 | BC78: 4258739507 | BD78: 3980171343 | BE78: 3719911296 | BF78: 3476750279 | BG78: 3229364291 | BH78: 3037284847 | BI78: =ROUND(SUMIF($W$124:$BH$124,">=0",$W78:$BH78),0) -> 435011945548
B79: на нефть на внутреннем рынке, руб./т | C79: =C80*0.5 -> 10315 | E79: Транспортные расходы всего | W79: =SUM(W85,W94) -> 343936512 | X79: =SUM(X85,X94) -> 1017194890 | Y79: 1655746885 | Z79: 2261809091 | AA79: 2837461668 | AB79: 3023176054 | AC79: 2836144495 | AD79: 2660683814 | AE79: 2496078169 | AF79: 2341656004 | AG79: 2196787307 | AH79: 2060881045 | AI79: 1933382749 | AJ79: 1813772252 | AK79: 1701561567 | AL79: 1596292900 | AM79: 1497536776 | AN79: 1404890289 | AO79: 1317975463 | AP79: 1236437702 | AQ79: 1159944349 | AR79: 1088183328 | AS79: 1020861868 | AT79: 957705312.5 | AU79: 898455994.8 | AV79: 842872190.5 | AW79: 790727129.3 | AX79: 741808070.1 | AY79: 695915433.4 | AZ79: 652861986.8 | BA79: 612472081.1 | BB79: 574580934 | BC79: 539033957.4 | BD79: 505686127.2 | BE79: 474401391.1 | BF79: 445052113.9 | BG79: 413384709.5 | BH79: 391688388.1 | BI79: =ROUND(SUMIF($W$124:$BH$124,">=0",$W79:$BH79),0) -> 51039040997
B80: на нефть на внешнем рынке, руб/т | C80: 20630 | E80: Выручка всего без трансп. | W80: =W78-W79 -> 2762248320 | X80: =X78-X79 -> 8127615835 | Y80: 1.316249589e+10 | Z80: 1.788942145e+10 | AA80: 2.232940487e+10 | AB80: 2.367162797e+10 | AC80: 2.209639032e+10 | AD80: 2.062648801e+10 | AE80: 1.925484355e+10 | AF80: 1.79748572e+10 | AG80: 1.67803746e+10 | AH80: 1.566565655e+10 | AI80: 1.46253509e+10 | AJ80: 1.36544663e+10 | AK80: 1.274834782e+10 | AL80: 1.19026541e+10 | AM80: 1.111333619e+10 | AN80: 1.037661773e+10 | AO80: 9688976530 | AP80: 9047127373 | AQ80: 8448006005 | AR80: 7888754205 | AS80: 7366705861 | AT80: 6879374003 | AU80: 6424438705 | AV80: 5999735818 | AW80: 5603246457 | AX80: 5233087206 | AY80: 4887500983 | AZ80: 4564848530 | BA80: 4263600472 | BB80: 3982329915 | BC80: 3719705550 | BD80: 3474485216 | BE80: 3245509904 | BF80: 3031698165 | BG80: 2815979582 | BH80: 2645596459 | BI80: =ROUND(SUMIF($W$124:$BH$124,">=0",$W80:$BH80),0) -> 383972904551
B81: на попутный газ, руб./тыс. м3 | C81: 595 | E81: Нефть на экспорт тыс.т | W81: =W77*$C$125 -> 69120 | X81: =X77*$C$125 -> 202398.9443 | Y81: 326194.5089 | Z81: 441181.4775 | AA81: 547986.6205 | AB81: 578072.1104 | AC81: 536939.7515 | AD81: 498734.1399 | AE81: 463247.0246 | AF81: 430284.9727 | AG81: 399668.3151 | AH81: 371230.1665 | AI81: 344815.5165 | AJ81: 320280.3845 | AK81: 297491.0343 | AL81: 276323.2462 | AM81: 256661.6387 | AN81: 238399.0406 | AO81: 221435.9062 | AP81: 205679.773 | AQ81: 191044.7576 | AR81: 177451.0875 | AS81: 164824.6666 | AT81: 153096.6707 | AU81: 142203.173 | AV81: 132084.7953 | AW81: 122686.3844 | AX81: 113956.7116 | AY81: 105848.1932 | AZ81: 98316.63129 | BA81: 91320.97298 | BB81: 84823.08635 | BC81: 78787.55278 | BD81: 73181.47382 | BE81: 67974.29189 | BF81: 63137.62373 | BG81: 58645.10567 | BH81: 54472.24991 | BI81: =ROUND(SUMIF($W$124:$BH$124,">=0",$W81:$BH81),0) -> 9000000
B82: на природный газ, руб./тыс. м3 | C82: 0 | E82: Цена на экспорт | W82: =$C$80 -> 20630 | X82: =$C$80 -> 20630 | Y82: 20630 | Z82: 20630 | AA82: 20630 | AB82: 20630 | AC82: 20630 | AD82: 20630 | AE82: 20630 | AF82: 20630 | AG82: 20630 | AH82: 20630 | AI82: 20630 | AJ82: 20630 | AK82: 20630 | AL82: 20630 | AM82: 20630 | AN82: 20630 | AO82: 20630 | AP82: 20630 | AQ82: 20630 | AR82: 20630 | AS82: 20630 | AT82: 20630 | AU82: 20630 | AV82: 20630 | AW82: 20630 | AX82: 20630 | AY82: 20630 | AZ82: 20630 | BA82: 20630 | BB82: 20630 | BC82: 20630 | BD82: 20630 | BE82: 20630 | BF82: 20630 | BG82: 20630 | BH82: 20630
B83: на конденсат, руб./т | C83: 0 | E83: Валовая выручка на экспорт | W83: =W81*W82 -> 1425945600 | X83: =X81*X82 -> 4175490221 | Y83: 6729392718 | Z83: 9101573882 | AA83: 1.130496398e+10 | AB83: 1.192562764e+10 | AC83: 1.107706707e+10 | AD83: 1.028888531e+10 | AE83: 9556786117 | AF83: 8876778988 | AG83: 8245157340 | AH83: 7658478334 | AI83: 7113544106 | AJ83: 6607384331 | AK83: 6137240038 | AL83: 5700548568 | AM83: 5294929606 | AN83: 4918172207 | AO83: 4568222744 | AP83: 4243173717 | AQ83: 3941253349 | AR83: 3660815936 | AS83: 3400332871 | AT83: 3158384316 | AU83: 2933651458 | AV83: 2724909327 | AW83: 2531020111 | AX83: 2350926960 | AY83: 2183648225 | AZ83: 2028272103 | BA83: 1883951673 | BB83: 1749900271 | BC83: 1625387214 | BD83: 1509733805 | BE83: 1402309642 | BF83: 1302529178 | BG83: 1209848530 | BH83: 1123762516 | BI83: =ROUND(SUMIF($W$124:$BH$124,">=0",$W83:$BH83),0) -> 185670000000
B84: другие показатели | C84: 0 | E84: Транспортный тариф экспорт, $/т | W84: =$C$94*W153 -> 1492.78 | X84: =$C$94*X153 -> 1507.7078 | Y84: 1522.784878 | Z84: 1538.012727 | AA84: 1553.392854 | AB84: 1568.926783 | AC84: 1584.61605 | AD84: 1600.462211 | AE84: 1616.466833 | AF84: 1632.631501 | AG84: 1648.957816 | AH84: 1665.447395 | AI84: 1682.101868 | AJ84: 1698.922887 | AK84: 1715.912116 | AL84: 1733.071237 | AM84: 1750.40195 | AN84: 1767.905969 | AO84: 1785.585029 | AP84: 1803.440879 | AQ84: 1821.475288 | AR84: 1839.690041 | AS84: 1858.086941 | AT84: 1876.667811 | AU84: 1895.434489 | AV84: 1914.388834 | AW84: 1933.532722 | AX84: 1952.868049 | AY84: 1972.39673 | AZ84: 1992.120697 | BA84: 2012.041904 | BB84: 2032.162323 | BC84: 2052.483946 | BD84: 2073.008786 | BE84: 2093.738873 | BF84: 2114.676262 | BG84: 2114.676262 | BH84: 2157.181255
B85: Налоги и платежи: | E85: Транспортные расходы экспорт $тыс. | W85: =W81*W84 -> 103180953.6 | X85: =X81*X84 -> 305158467.1 | Y85: 496724065.4 | Z85: 678542727.3 | AA85: 851238500.4 | AB85: 906952816.3 | AC85: 850843348.4 | AD85: 798205144.2 | AE85: 748823450.7 | AF85: 702496801.1 | AG85: 659036192.1 | AH85: 618264313.5 | AI85: 580014824.6 | AJ85: 544131675.5 | AK85: 510468470.2 | AL85: 478887870.1 | AM85: 449261032.7 | AN85: 421467086.8 | AO85: 395392638.9 | AP85: 370931310.6 | AQ85: 347983304.8 | AR85: 326454998.5 | AS85: 306258560.5 | AT85: 287311593.7 | AU85: 269536798.4 | AV85: 252861657.2 | AW85: 237218138.8 | AX85: 222542421 | AY85: 208774630 | AZ85: 195858596 | BA85: 183741624.3 | BB85: 172374280.2 | BC85: 161710187.2 | BD85: 151705838.2 | BE85: 142320417.3 | BF85: 133515634.2 | BG85: 124015412.9 | BH85: 117506516.4 | BI85: =ROUND(SUMIF($W$124:$BH$124,">=0",$W85:$BH85),0) -> 15311712299
B86: НДС, % | C86: 0.18 | E86: Выручка эксп.без транспорта - net back | W86: =W83-W85 -> 1322764646 | X86: =X83-X85 -> 3870331754 | Y86: 6232668652 | Z86: 8423031154 | AA86: 1.045372548e+10 | AB86: 1.101867482e+10 | AC86: 1.022622373e+10 | AD86: 9490680162 | AE86: 8807962666 | AF86: 8174282187 | AG86: 7586121148 | AH86: 7040214021 | AI86: 6533529281 | AJ86: 6063252656 | AK86: 5626771568 | AL86: 5221660698 | AM86: 4845668573 | AN86: 4496705120 | AO86: 4172830105 | AP86: 3872242406 | AQ86: 3593270044 | AR86: 3334360937 | AS86: 3094074311 | AT86: 2871072722 | AU86: 2664114660 | AV86: 2472047669 | AW86: 2293801972 | AX86: 2128384539 | AY86: 1974873595 | AZ86: 1832413507 | BA86: 1700210048 | BB86: 1577525991 | BC86: 1463677027 | BD86: 1358027967 | BE86: 1259989224 | BF86: 1169013543 | BG86: 1085833117 | BH86: 1006255999 | BI86: =ROUND(SUMIF($W$124:$BH$124,">=0",$W86:$BH86),0) -> 170358287701
B87: НДПИ, руб./т | C87: 4380 | E87: Эксп. пошлина на нефть | W87: =W81*W88 -> 718566681.6 | X87: =X81*X88 -> 2125166510 | Y87: 3459256296 | Z87: 4725467045 | AA87: 5928144712 | AB87: 6316147049 | AC87: 5925392818 | AD87: 5558812956 | AE87: 5214911893 | AF87: 4892286586 | AG87: 4589620788 | AH87: 4305679688 | AI87: 4039304865 | AJ87: 3789409564 | AK87: 3554974265 | AL87: 3335042521 | AM87: 3128717057 | AN87: 2935156106 | AO87: 2753569981 | AP87: 2583217848 | AQ87: 2423404707 | AR87: 2273478551 | AS87: 2132827715 | AT87: 2000878372 | AU87: 1877092196 | AV87: 1760964166 | AW87: 1652020502 | AX87: 1549816739 | AY87: 1453935905 | AZ87: 1363986826 | BA87: 1279602530 | BB87: 1200438746 | BC87: 1126172501 | BD87: 1056500807 | BE87: 991139415.1 | BF87: 929821666 | BG87: 863660787.9 | BH87: 818331917.2 | BI87: =ROUND(SUMIF($W$124:$BH$124,">=0",$W87:$BH87),0) -> 106632919280
B88: На имущество, % | C88: 0.022 | E88: Ставка экспортной пошлины на нефть | W88: =$C$95*W153 -> 10395.93 | X88: =$C$95*X153 -> 10499.8893 | Y88: 10604.88819 | Z88: 10710.93707 | AA88: 10818.04645 | AB88: 10926.22691 | AC88: 11035.48918 | AD88: 11145.84407 | AE88: 11257.30251 | AF88: 11369.87554 | AG88: 11483.57429 | AH88: 11598.41004 | AI88: 11714.39414 | AJ88: 11831.53808 | AK88: 11949.85346 | AL88: 12069.35199 | AM88: 12190.04551 | AN88: 12311.94597 | AO88: 12435.06543 | AP88: 12559.41608 | AQ88: 12685.01024 | AR88: 12811.86034 | AS88: 12939.97895 | AT88: 13069.37874 | AU88: 13200.07252 | AV88: 13332.07325 | AW88: 13465.39398 | AX88: 13600.04792 | AY88: 13736.0484 | AZ88: 13873.40889 | BA88: 14012.14297 | BB88: 14152.2644 | BC88: 14293.78705 | BD88: 14436.72492 | BE88: 14581.09217 | BF88: 14726.90309 | BG88: 14726.90309 | BH88: 15022.91384
B89: На прибыль, % | C89: 0.2 | E89: Цена Urals для эксп.пошлины и НДПИ
B90: Единый социальный налог, % | C90: 0.26 | E90: Нефть на внутренний рынок тыс.т | W90: =W77*$C$126 -> 161280 | X90: =X77*$C$126 -> 472264.2034 | Y90: 761120.5207 | Z90: 1029423.448 | AA90: 1278635.448 | AB90: 1348834.924 | AC90: 1252859.42 | AD90: 1163712.993 | AE90: 1080909.724 | AF90: 1003998.27 | AG90: 932559.4018 | AH90: 866203.7218 | AI90: 804569.5386 | AJ90: 747320.8971 | AK90: 694145.7468 | AL90: 644754.241 | AM90: 598877.1569 | AN90: 556264.428 | AO90: 516683.7811 | AP90: 479919.4703 | AQ90: 445771.101 | AR90: 414052.5376 | AS90: 384590.8886 | AT90: 357225.5649 | AU90: 331807.4036 | AV90: 308197.8557 | AW90: 286268.2303 | AX90: 265898.9937 | AY90: 246979.1174 | AZ90: 229405.473 | BA90: 213082.2703 | BB90: 197920.5348 | BC90: 183837.6232 | BD90: 170756.7722 | BE90: 158606.6811 | BF90: 147321.122 | BG90: 136838.5799 | BH90: 127101.9165 | BI90: =ROUND(SUMIF($W$124:$BH$124,">=0",$W90:$BH90),0) -> 21000000
B91: Cтрахование от несчастных случаев , % | C91: 0.005 | E91: Цена на внутр. рынок | W91: =$C$79*W153 -> 10418.15 | X91: =$C$79*X153 -> 10522.3315 | Y91: 10627.55481 | Z91: 10733.83036 | AA91: 10841.16867 | AB91: 10949.58035 | AC91: 11059.07616 | AD91: 11169.66692 | AE91: 11281.36359 | AF91: 11394.17722 | AG91: 11508.119 | AH91: 11623.20019 | AI91: 11739.43219 | AJ91: 11856.82651 | AK91: 11975.39477 | AL91: 12095.14872 | AM91: 12216.10021 | AN91: 12338.26121 | AO91: 12461.64382 | AP91: 12586.26026 | AQ91: 12712.12286 | AR91: 12839.24409 | AS91: 12967.63653 | AT91: 13097.3129 | AU91: 13228.28603 | AV91: 13360.56889 | AW91: 13494.17458 | AX91: 13629.11632 | AY91: 13765.40749 | AZ91: 13903.06156 | BA91: 14042.09218 | BB91: 14182.5131 | BC91: 14324.33823 | BD91: 14467.58161 | BE91: 14612.25743 | BF91: 14758.38 | BG91: 14758.38 | BH91: 15055.02344
B92: Налог на нужды общеобраз-х учреждений, % | C92: 0 | E92: Валовая выручка | W92: =W90*W91 -> 1680239232 | X92: =X90*X91 -> 4969320504 | Y92: 8088850054 | Z92: 1.104965666e+10 | AA92: 1.386190255e+10 | AB92: 1.476917639e+10 | AC92: 1.385546774e+10 | AD92: 1.299828652e+10 | AE92: 1.21941356e+10 | AF92: 1.143973422e+10 | AG92: 1.073200457e+10 | AH92: 1.006805926e+10 | AI92: 9445189538 | AJ92: 8860854224 | AK92: 8312669349 | AL92: 7798398435 | AM92: 7315943362 | AN92: 6863335815 | AO92: 6438729249 | AP92: 6040391358 | AQ92: 5666697006 | AR92: 5316121597 | AS92: 4987234858 | AT92: 4678694999 | AU92: 4389243241 | AV92: 4117698682 | AW92: 3862953476 | AX92: 3623968316 | AY92: 3399768191 | AZ92: 3189438414 | BA92: 2992120881 | BB92: 2807010578 | BC92: 2633352293 | BD92: 2470437538 | BE92: 2317601654 | BF92: 2174221102 | BG92: 2019515761 | BH92: 1913522332 | BI92: =ROUND(SUMIF($W$124:$BH$124,">=0",$W92:$BH92),0) -> 249341945548
B93: Ресурсные платежи, руб. | C93: 0 | E93: Транспортный тариф | W93: =$C$94*W153 -> 1492.78 | X93: =$C$94*X153 -> 1507.7078 | Y93: 1522.784878 | Z93: 1538.012727 | AA93: 1553.392854 | AB93: 1568.926783 | AC93: 1584.61605 | AD93: 1600.462211 | AE93: 1616.466833 | AF93: 1632.631501 | AG93: 1648.957816 | AH93: 1665.447395 | AI93: 1682.101868 | AJ93: 1698.922887 | AK93: 1715.912116 | AL93: 1733.071237 | AM93: 1750.40195 | AN93: 1767.905969 | AO93: 1785.585029 | AP93: 1803.440879 | AQ93: 1821.475288 | AR93: 1839.690041 | AS93: 1858.086941 | AT93: 1876.667811 | AU93: 1895.434489 | AV93: 1914.388834 | AW93: 1933.532722 | AX93: 1952.868049 | AY93: 1972.39673 | AZ93: 1992.120697 | BA93: 2012.041904 | BB93: 2032.162323 | BC93: 2052.483946 | BD93: 2073.008786 | BE93: 2093.738873 | BF93: 2114.676262 | BG93: 2114.676262 | BH93: 2157.181255
B94: Транспортные расходы - внешний рынок, руб/т | C94: 1478 | E94: Транспортные расходы | W94: =W90*W93 -> 240755558.4 | X94: =X90*X93 -> 712036423.2 | Y94: 1159022819 | Z94: 1583266364 | AA94: 1986223168 | AB94: 2116223238 | AC94: 1985301146 | AD94: 1862478670 | AE94: 1747254718 | AF94: 1639159202 | AG94: 1537751115 | AH94: 1442616732 | AI94: 1353367924 | AJ94: 1269640576 | AK94: 1191093097 | AL94: 1117405030 | AM94: 1048275743 | AN94: 983423202.6 | AO94: 922582824.1 | AP94: 865506391.4 | AQ94: 811961044.5 | AR94: 761728329.7 | AS94: 714603307.9 | AT94: 670393718.7 | AU94: 628919196.4 | AV94: 590010533.4 | AW94: 553508990.5 | AX94: 519265649.1 | AY94: 487140803.4 | AZ94: 457003390.7 | BA94: 428730456.8 | BB94: 402206653.8 | BC94: 377323770.2 | BD94: 353980289 | BE94: 332080973.8 | BF94: 311536479.7 | BG94: 289369296.7 | BH94: 274181871.7 | BI94: =ROUND(SUMIF($W$124:$BH$124,">=0",$W94:$BH94),0) -> 35727328698
B95: Экспортная таможенная пошлина, руб./т | C95: 10293 | E95: Выручка без транспорта - net back | W95: =W92-W94 -> 1439483674 | X95: =X92-X94 -> 4257284081 | Y95: 6929827235 | Z95: 9466390295 | AA95: 1.187567939e+10 | AB95: 1.265295315e+10 | AC95: 1.18701666e+10 | AD95: 1.113580785e+10 | AE95: 1.044688088e+10 | AF95: 9800575015 | AG95: 9194253452 | AH95: 8625442528 | AI95: 8091821614 | AJ95: 7591213647 | AK95: 7121576252 | AL95: 6680993404 | AM95: 6267667619 | AN95: 5879912612 | AO95: 5516146425 | AP95: 5174884967 | AQ95: 4854735961 | AR95: 4554393268 | AS95: 4272631551 | AT95: 4008301280 | AU95: 3760324045 | AV95: 3527688149 | AW95: 3309444485 | AX95: 3104702666 | AY95: 2912627388 | AZ95: 2732435023 | BA95: 2563390424 | BB95: 2404803924 | BC95: 2256028523 | BD95: 2116457249 | BE95: 1985520680 | BF95: 1862684622 | BG95: 1730146464 | BH95: 1639340460 | BI95: =ROUND(SUMIF($W$124:$BH$124,">=0",$W95:$BH95),0) -> 213614616850
B96: Прочие налоги, используемые при оценке | C96: 1e-05 | E96: Добыча товарного газа всего тыс.м3 | BI96: =ROUND(SUMIF($W$124:$BH$124,">=0",$W96:$BH96),0) -> 0
B97: Капитальные вложения 1984 | E97: Выручка от газа | W97: =W96*$C$81 -> 0 | X97: =X96*$C$81 -> 0 | Y97: 0 | Z97: 0 | AA97: 0 | AB97: 0 | AC97: 0 | AD97: 0 | AE97: 0 | AF97: 0 | AG97: 0 | AH97: 0 | AI97: 0 | AJ97: 0 | AK97: 0 | AL97: 0 | AM97: 0 | AN97: 0 | AO97: 0 | AP97: 0 | AQ97: 0 | AR97: 0 | AS97: 0 | AT97: 0 | AU97: 0 | AV97: 0 | AW97: 0 | AX97: 0 | AY97: 0 | AZ97: 0 | BA97: 0 | BB97: 0 | BC97: 0 | BD97: 0 | BE97: 0 | BF97: 0 | BG97: 0 | BH97: 0 | BI97: =ROUND(SUMIF($W$124:$BH$124,">=0",$W97:$BH97),0) -> 0
B98: - Бурение разведочное, руб/м | C98: 288 | E98: Выручка от нефти и газа | W98: =SUM(W97,W80) -> 2762248320 | X98: =SUM(X97,X80) -> 8127615835 | Y98: 1.316249589e+10 | Z98: 1.788942145e+10 | AA98: 2.232940487e+10 | AB98: 2.367162797e+10 | AC98: 2.209639032e+10 | AD98: 2.062648801e+10 | AE98: 1.925484355e+10 | AF98: 1.79748572e+10 | AG98: 1.67803746e+10 | AH98: 1.566565655e+10 | AI98: 1.46253509e+10 | AJ98: 1.36544663e+10 | AK98: 1.274834782e+10 | AL98: 1.19026541e+10 | AM98: 1.111333619e+10 | AN98: 1.037661773e+10 | AO98: 9688976530 | AP98: 9047127373 | AQ98: 8448006005 | AR98: 7888754205 | AS98: 7366705861 | AT98: 6879374003 | AU98: 6424438705 | AV98: 5999735818 | AW98: 5603246457 | AX98: 5233087206 | AY98: 4887500983 | AZ98: 4564848530 | BA98: 4263600472 | BB98: 3982329915 | BC98: 3719705550 | BD98: 3474485216 | BE98: 3245509904 | BF98: 3031698165 | BG98: 2815979582 | BH98: 2645596459 | BI98: =ROUND(SUMIF($W$124:$BH$124,">=0",$W98:$BH98),0) -> 383972904551
B99: - Бурение эксплуатационное, руб/м | C99: 221 | E99: себ 1т
B100: - Оборудование не вх. в смету строек , руб/скв | C100: 179000 | E100: Выручка всего без эксп. пошл. и трансп | W100: =W98-W87 -> 2043681638 | X100: =X98-X87 -> 6002449325 | Y100: 9703239592 | Z100: 1.31639544e+10 | AA100: 1.640126015e+10 | AB100: 1.735548092e+10 | AC100: 1.61709975e+10 | AD100: 1.506767506e+10 | AE100: 1.403993166e+10 | AF100: 1.308257062e+10 | AG100: 1.219075381e+10 | AH100: 1.135997686e+10 | AI100: 1.058604603e+10 | AJ100: 9865056739 | AK100: 9193373555 | AL100: 8567611581 | AM100: 7984619135 | AN100: 7441461626 | AO100: 6935406549 | AP100: 6463909524 | AQ100: 6024601299 | AR100: 5615275654 | AS100: 5233878146 | AT100: 4878495630 | AU100: 4547346508 | AV100: 4238771652 | AW100: 3951225955 | AX100: 3683270467 | AY100: 3433565079 | AZ100: 3200861704 | BA100: 2983997942 | BB100: 2781891170 | BC100: 2593533048 | BD100: 2417984409 | BE100: 2254370489 | BF100: 2101876499 | BG100: 1952318794 | BH100: 1827264542 | BI100: =ROUND(SUMIF($W$124:$BH$124,">=0",$W100:$BH100),0) -> 277339985271
B101: - Обустройство руб/скв | C101: 655000 | E101: СЕБЕСТОИМОСТЬ $тыс | V101: 0 | W101: =SUM(W102,W114:W117) -> 1623687793 | X101: 4322465631 | Y101: 6862333634 | Z101: 9254598932 | AA101: 1.15097641e+10 | AB101: 1.201389663e+10 | AC101: 1.13246554e+10 | AD101: 1.06844567e+10 | AE101: 1.008981094e+10 | AF101: 9537476827 | AG101: 9024443700 | AH101: 8547915123 | AI101: 8100525967 | AJ101: 7684965002 | AK101: 7265248118 | AL101: 6454866563 | AM101: 5669992021 | AN101: 4908809864 | AO101: 4169634565 | AP101: 3484620289 | AQ101: 3236718312 | AR101: 3006452565 | AS101: 2792568369 | AT101: 2593900305 | AU101: 2409365865 | AV101: 2237959554 | AW101: 2078747409 | AX101: 1930861912 | AY101: 1793497262 | AZ101: 1665904984 | BA101: 1547389852 | BB101: 1437306100 | BC101: 1335053901 | BD101: 1240076105 | BE101: 1151855195 | BF101: 1069910474 | BG101: 993795441.1 | BH101: 923095361.4 | BI101: 185978626784 | BJ101: =BI101/BI78 -> 0.4275253328
B102: Сбор и транспорт р/скв | C102: 115001 | E102: Операционные затраты | W102: =SUM(W103:W111) -> 162690720 | X102: =SUM(X103:X111) -> 463750896.6 | Y102: 744358584.1 | Z102: 1005969067 | AA102: 1249934078 | AB102: 1314818451 | AC102: 1226109664 | AD102: 1143712895 | AE102: 1067179016 | AF102: 996090857.9 | AG102: 930060932.8 | AH102: 868729325.7 | AI102: 806994058.7 | AJ102: 749646022.2 | AK102: 696373430.9 | AL102: 646886657.4 | AM102: 600916657.3 | AN102: 558213506.7 | AO102: 518545043.3 | AP102: 481695603.6 | AQ102: 447464851.2 | AR102: 415666686.8 | AS102: 386128236.7 | AT102: 358688912.8 | AU102: 333199539.6 | AV102: 309521542.9 | AW102: 287526196.8 | AX102: 267093923.1 | AY102: 248113642 | AZ102: 230482167.5 | BA102: 214103646.8 | BB102: 198889038.9 | BC102: 184755630.7 | BD102: 171626587.1 | BE102: 159430533.5 | BF102: 148101167.4 | BG102: 137576898.4 | BH102: 127800512.7 | BI102: 20858845184
B103: Подготовка нефти и газа руб/скв | C103: 7500 | E103: Вспомогательные материалы руб | W103: =W$77*$C$112 -> 35251200 | X103: =X$77*$C$112 -> 103223461.6 | Y103: 166359199.5 | Z103: 225002553.5 | AA103: 279473176.5 | AB103: 294816776.3 | AC103: 273839273.3 | AD103: 254354411.3 | AE103: 236255982.5 | AF103: 219445336.1 | AG103: 203830840.7 | AH103: 189327384.9 | AI103: 175855913.4 | AJ103: 163342996.1 | AK103: 151720427.5 | AL103: 140924855.5 | AM103: 130897435.7 | AN103: 121583510.7 | AO103: 112932312.1 | AP103: 104896684.2 | AQ103: 97432826.37 | AR103: 90500054.64 | AS103: 84060579.95 | AT103: 78079302.04 | AU103: 72523618.22 | AV103: 67363245.59 | AW103: 62570056.05 | AX103: 58117922.91 | AY103: 53982578.51 | AZ103: 50141481.96 | BA103: 46573696.22 | BB103: 43259774.04 | BC103: 40181651.92 | BD103: 37322551.65 | BE103: 34666888.86 | BF103: 32200188.1 | BG103: 29909003.89 | BH103: 27780847.46 | BI103: 4590000000
B104: ППД ,руб/скв | C104: 95000 | E104: Топливо руб | W104: =W$77*$C$113 -> 23040000 | X104: =X$77*$C$113 -> 67466314.77 | Y104: 108731503 | Z104: 147060492.5 | AA104: 182662206.8 | AB104: 192690703.5 | AC104: 178979917.2 | AD104: 166244713.3 | AE104: 154415674.9 | AF104: 143428324.2 | AG104: 133222771.7 | AH104: 123743388.8 | AI104: 114938505.5 | AJ104: 106760128.2 | AK104: 99163678.11 | AL104: 92107748.72 | AM104: 85553879.56 | AN104: 79466346.85 | AO104: 73811968.72 | AP104: 68559924.33 | AQ104: 63681585.86 | AR104: 59150362.51 | AS104: 54941555.52 | AT104: 51032223.56 | AU104: 47401057.66 | AV104: 44028265.09 | AW104: 40895461.47 | AX104: 37985570.53 | AY104: 35282731.05 | AZ104: 32772210.43 | BA104: 30440324.33 | BB104: 28274362.12 | BC104: 26262517.59 | BD104: 24393824.61 | BE104: 22658097.3 | BF104: 21045874.58 | BG104: 19548368.56 | BH104: 18157416.64 | BI104: 3000000000
B105: Электроснабжение ,руб/скв | C105: 83700 | E105: Энергетические затраты руб | W105: =W$77*$C$114 -> 63129600 | X105: =X$77*$C$114 -> 184857702.5 | Y105: 297924318.1 | Z105: 402945749.5 | AA105: 500494446.7 | AB105: 527972527.5 | AC105: 490404973.1 | AD105: 455510514.4 | AE105: 423098949.1 | AF105: 392993608.4 | AG105: 365030394.4 | AH105: 339056885.4 | AI105: 314931505.1 | AJ105: 292522751.1 | AK105: 271708478 | AL105: 252375231.5 | AM105: 234417630 | AN105: 217737790.4 | AO105: 202244794.3 | AP105: 187854192.7 | AQ105: 174487545.3 | AR105: 162071993.3 | AS105: 150539862.1 | AT105: 139828292.5 | AU105: 129878898 | AV105: 120637446.4 | AW105: 112053564.4 | AX105: 104080463.3 | AY105: 96674683.09 | AZ105: 89795856.58 | BA105: 83406488.65 | BB105: 77471752.2 | BC105: 71959298.21 | BD105: 66839079.42 | BE105: 62083186.59 | BF105: 57665696.34 | BG105: 53562529.84 | BH105: 49751321.59 | BI105: 8220000000
B106: Автоматизация ,руб/скв | C106: 16900 | E106: МУН (+прочие условно-переменные…..) руб | W106: =W$77*$C$115 -> 27648000 | X106: 80959577.73 | Y106: 130477803.5 | Z106: 176472591 | AA106: 219194648.2 | AB106: 231228844.2 | AC106: 214775900.6 | AD106: 199493656 | AE106: 185298809.8 | AF106: 172113989.1 | AG106: 159867326 | AH106: 148492066.6 | AI106: 137926206.6 | AJ106: 128112153.8 | AK106: 118996413.7 | AL106: 110529298.5 | AM106: 102664655.5 | AN106: 95359616.22 | AO106: 88574362.47 | AP106: 82271909.19 | AQ106: 76417903.03 | AR106: 70980435.01 | AS106: 65929866.63 | AT106: 61238668.27 | AU106: 56881269.19 | AV106: 52833918.11 | AW106: 49074553.77 | AX106: 45582684.64 | AY106: 42339277.27 | AZ106: 39326652.51 | BA106: 36528389.19 | BB106: 33929234.54 | BC106: 31515021.11 | BD106: 29272589.53 | BE106: 27189716.76 | BF106: 25255049.49 | BG106: 23458042.27 | BH106: 21788899.97 | BI106: =ROUND(SUMIF($W$124:$BH$124,">=0",$W106:$BH106),0) -> 3600000000
B107: Материально тех-е снабж/ (Базы…) ,руб/скв | C107: 55700 | E107: Заработная плата, основная и доп. руб | W107: =W31*$C$116 -> 3800160 | X107: 7600320 | Y107: 11400480 | Z107: 15200640 | AA107: 19000800 | AB107: 19000800 | AC107: 19000800 | AD107: 19000800 | AE107: 19000800 | AF107: 19000800 | AG107: 19000800 | AH107: 19000800 | AI107: 17670744 | AJ107: 16433791.92 | AK107: 15283426.49 | AL107: 14213586.63 | AM107: 13218635.57 | AN107: 12293331.08 | AO107: 11432797.9 | AP107: 10632502.05 | AQ107: 9888226.906 | AR107: 9196051.022 | AS107: 8552327.451 | AT107: 7953664.529 | AU107: 7396908.012 | AV107: 6879124.451 | AW107: 6397585.74 | AX107: 5949754.738 | AY107: 5533271.906 | AZ107: 5145942.873 | BA107: 4785726.872 | BB107: 4450725.991 | BC107: 4139175.171 | BD107: 3849432.909 | BE107: 3579972.606 | BF107: 3329374.523 | BG107: 3096318.307 | BH107: 2879576.025 | BI107: =ROUND(SUMIF($W$124:$BH$124,">=0",$W107:$BH107),0) -> 404189976
B108: Промысловые дороги , руб/скв | C108: 161000 | E108: Капитальный ремонт руб | W108: =W31*$C$117 -> 5678400 | X108: 11356800 | Y108: 17035200 | Z108: 22713600 | AA108: 28392000 | AB108: 28392000 | AC108: 28392000 | AD108: 28392000 | AE108: 28392000 | AF108: 28392000 | AG108: 28392000 | AH108: 28392000 | AI108: 26404560 | AJ108: 24556240.8 | AK108: 22837303.94 | AL108: 21238692.67 | AM108: 19751984.18 | AN108: 18369345.29 | AO108: 17083491.12 | AP108: 15887646.74 | AQ108: 14775511.47 | AR108: 13741225.67 | AS108: 12779339.87 | AT108: 11884786.08 | AU108: 11052851.05 | AV108: 10279151.48 | AW108: 9559610.875 | AX108: 8890438.114 | AY108: 8268107.446 | AZ108: 7689339.925 | BA108: 7151086.13 | BB108: 6650510.101 | BC108: 6184974.394 | BD108: 5752026.186 | BE108: 5349384.353 | BF108: 4974927.449 | BG108: 4626682.527 | BH108: 4302814.75 | BI108: =ROUND(SUMIF($W$124:$BH$124,">=0",$W108:$BH108),0) -> 603962033
B109: Прочие , руб/скв | C109: 32100 | E109: Прочие (условно-постоянные) затраты руб/скв | W109: =W31*$C$118 -> 3057600 | X109: 6115200 | Y109: 9172800 | Z109: 12230400 | AA109: 15288000 | AB109: 15288000 | AC109: 15288000 | AD109: 15288000 | AE109: 15288000 | AF109: 15288000 | AG109: 15288000 | AH109: 15288000 | AI109: 14217840 | AJ109: 13222591.2 | AK109: 12297009.82 | AL109: 11436219.13 | AM109: 10635683.79 | AN109: 9891185.925 | AO109: 9198802.91 | AP109: 8554886.706 | AQ109: 7956044.637 | AR109: 7399121.512 | AS109: 6881183.006 | AT109: 6399500.196 | AU109: 5951535.182 | AV109: 5534927.719 | AW109: 5147482.779 | AX109: 4787158.985 | AY109: 4452057.856 | AZ109: 4140413.806 | BA109: 3850584.839 | BB109: 3581043.901 | BC109: 3330370.828 | BD109: 3097244.87 | BE109: 2880437.729 | BF109: 2678807.088 | BG109: 2491290.592 | BH109: 2316900.25 | BI109: =ROUND(SUMIF($W$124:$BH$124,">=0",$W109:$BH109),0) -> 325210325
B110: Непроиозводственное строительство руб/скв | C110: 174300 | E110: ЕСН и страхование | W110: =$C$90*$C$116*W29 -> 1085760 | X110: =$C$90*$C$116*X29 -> 2171520 | Y110: 3257280 | Z110: 4343040 | AA110: 5428800 | AB110: 5428800 | AC110: 5428800 | AD110: 5428800 | AE110: 5428800 | AF110: 5428800 | AG110: 5428800 | AH110: 5428800 | AI110: 5048784 | AJ110: 4695369.12 | AK110: 4366693.282 | AL110: 4061024.752 | AM110: 3776753.019 | AN110: 3512380.308 | AO110: 3266513.686 | AP110: 3037857.728 | AQ110: 2825207.687 | AR110: 2627443.149 | AS110: 2443522.129 | AT110: 2272475.58 | AU110: 2113402.289 | AV110: 1965464.129 | AW110: 1827881.64 | AX110: 1699929.925 | AY110: 1580934.83 | AZ110: 1470269.392 | BA110: 1367350.535 | BB110: 1271635.997 | BC110: 1182621.478 | BD110: 1099837.974 | BE110: 1022849.316 | BF110: 951249.8638 | BG110: 884662.3733 | BH110: 822736.0072 | BI110: =ROUND(SUMIF($W$124:$BH$124,">=0",$W110:$BH110),0) -> 115482850
B111: Эксплуатационные затраты | E111: Прочие налоги руб | BI111: =TEXT(SUMIF($W$124:$BH$124,">0",$W111:$BH111),"# ##") -> 
B112: Вспомогательные материалы руб/т | C112: 153 | E112: ВНЕРЕАЛИЗАЦИОННЫЕ | BI112: =TEXT(SUMIF($W$124:$BH$124,">0",$W112:$BH112),"# ##") -> 
B113: Топливо руб/т | C113: 100 | E113: Проценты за кредит
B114: Энергетические затраты руб/т | C114: 274 | E114: Имуще-ные платежи (аренд. лиз.) | BI114: =ROUND(SUMIF($W$124:$BH$124,">=0",$W114:$BH114),0) -> 0
B115: МУН (+прочие условно-переменные…...) руб/т | C115: 120 | E115: Коммерческие расходы | BI115: =ROUND(SUMIF($W$124:$BH$124,">=0",$W115:$BH115),0) -> 0
B116: Заработная плата, основная и доп-я руб/скв | C116: 87000 | E116: НДПИ | W116: =W77*$C$87 -> 1009152000 | X116: =X77*$C$87 -> 2955024587 | Y116: 4762439829 | Z116: 6441249572 | AA116: 8000604659 | AB116: 8439852812 | AC116: 7839320372 | AD116: 7281518442 | AE116: 6763406559 | AF116: 6282160602 | AG116: 5835157400 | AH116: 5419960430 | AI116: 5034306541 | AJ116: 4676093613 | AK116: 4343369101 | AL116: 4034319394 | AM116: 3747259925 | AN116: 3480625992 | AO116: 3232964230 | AP116: 3002924686 | AQ116: 2789253461 | AR116: 2590785878 | AS116: 2406440132 | AT116: 2235211392 | AU116: 2076166325 | AV116: 1928438011 | AW116: 1791221212 | AX116: 1663767989 | AY116: 1545383620 | AZ116: 1435422817 | BA116: 1333286205 | BB116: 1238417061 | BC116: 1150298271 | BD116: 1068449518 | BE116: 992424661.6 | BF116: 921809306.5 | BG116: 856218542.8 | BH116: 795294848.7 | BI116: =ROUND(SUMIF($W$124:$BH$124,">=0",$W116:$BH116),0) -> 131400000000
B117: Капитальный ремонт руб/скв | C117: 130000 | E117: Аммортизация | W117: =IF(W76>0,(SUM(OFFSET(W127,0,-MIN(ROUNDDOWN(1/$C$121,0)-1,W76-$W$76),1,MIN(ROUNDDOWN(1/$C$121,0),W76-$W$76+1)))+IF(ROUNDDOWN(1/$C$121,0)<=W76-$W$76,OFFSET(W127,0,-ROUNDDOWN(1/$C$121,0),1,1),0)*(1/$C$121-ROUNDDOWN(1/$C$121,0)))*$C$121,0) -> 451845073.4 | X117: 903690146.9 | Y117: 1355535220 | Z117: 1807380294 | AA117: 2259225367 | AB117: 2259225367 | AC117: 2259225367 | AD117: 2259225367 | AE117: 2259225367 | AF117: 2259225367 | AG117: 2259225367 | AH117: 2259225367 | AI117: 2259225367 | AJ117: 2259225367 | AK117: 2225505586 | AL117: 1773660512 | AM117: 1321815439 | AN117: 869970365.3 | AO117: 418125291.8 | AP117: 0 | AQ117: 0 | AR117: 0 | AS117: 0 | AT117: 0 | AU117: 0 | AV117: 0 | AW117: 0 | AX117: 0 | AY117: 0 | AZ117: 0 | BA117: 0 | BB117: 0 | BC117: 0 | BD117: 0 | BE117: 0 | BF117: 0 | BG117: 0 | BH117: 0 | BI117: 33719781600
B118: Прочие (условно-постоянные) затраты руб/скв | C118: 70000 | E118: Налог на имущество | W118: =(W125-W126)*$C$88 -> 138426447.4 | X118: =(X125-X126)*$C$88 -> 276852894.8 | Y118: 415279342.3 | Z118: 553705789.7 | AA118: 692132237.1 | AB118: 692132237.1 | AC118: 692132237.1 | AD118: 692132237.1 | AE118: 692132237.1 | AF118: 692132237.1 | AG118: 692132237.1 | AH118: 692132237.1 | AI118: 692132237.1 | AJ118: 692132237.1 | AK118: 692874072.3 | AL118: 702814663.9 | AM118: 712755255.5 | AN118: 722695847.2 | AO118: 732636438.8 | AP118: 741835195.2 | AQ118: 741835195.2 | AR118: 741835195.2 | AS118: 741835195.2 | AT118: 741835195.2 | AU118: 741835195.2 | AV118: 741835195.2 | AW118: 741835195.2 | AX118: 741835195.2 | AY118: 741835195.2 | AZ118: 741835195.2 | BA118: 741835195.2 | BB118: 741835195.2 | BC118: 741835195.2 | BD118: 741835195.2 | BE118: 741835195.2 | BF118: 741835195.2 | BG118: 741835195.2 | BH118: 741835195.2 | BI118: 25964231832
B119: Дополнительные данные | E119: Налог на добавленную стоимость (НДС) | BI119: 0
B120: Курс доллара США, руб./$ | C120: 38 | E120: EBIT | W120: =W100-W102-W112-W113-W114-W115-W116 -> 871838918.4 | X120: =X100-X102-X112-X113-X114-X115-X116 -> 2583673842 | Y120: 4196441178 | Z120: 5716735766 | AA120: 7150721417 | AB120: 7600809659 | AC120: 7105567468 | AD120: 6642443720 | AE120: 6209346082 | AF120: 5804319156 | AG120: 5425535479 | AH120: 5071287105 | AI120: 4744745431 | AJ120: 4439317104 | AK120: 4153631022 | AL120: 3886405530 | AM120: 3636442554 | AN120: 3402622127 | AO120: 3183897276 | AP120: 2979289235 | AQ120: 2787882987 | AR120: 2608823089 | AS120: 2441309777 | AT120: 2284595326 | AU120: 2137980643 | AV120: 2000812098 | AW120: 1872478545 | AX120: 1752408555 | AY120: 1640067816 | AZ120: 1534956720 | BA120: 1436608090 | BB120: 1344585070 | BC120: 1258479147 | BD120: 1177908304 | BE120: 1102515294 | BF120: 1031966025 | BG120: 958523352.6 | BH120: 904169180.7 | BI120: 125081140088
B121: Норма амортизации, % | C121: 0.067 | E121: EBITDA | W121: =W120+W117 -> 1323683992 | X121: =X120+X117 -> 3487363988 | Y121: 5551976399 | Z121: 7524116060 | AA121: 9409946784 | AB121: 9860035026 | AC121: 9364792835 | AD121: 8901669087 | AE121: 8468571449 | AF121: 8063544524 | AG121: 7684760846 | AH121: 7330512472 | AI121: 7003970798 | AJ121: 6698542471 | AK121: 6379136608 | AL121: 5660066042 | AM121: 4958257992 | AN121: 4272592493 | AO121: 3602022568 | AP121: 2979289235 | AQ121: 2787882987 | AR121: 2608823089 | AS121: 2441309777 | AT121: 2284595326 | AU121: 2137980643 | AV121: 2000812098 | AW121: 1872478545 | AX121: 1752408555 | AY121: 1640067816 | AZ121: 1534956720 | BA121: 1436608090 | BB121: 1344585070 | BC121: 1258479147 | BD121: 1177908304 | BE121: 1102515294 | BF121: 1031966025 | BG121: 958523352.6 | BH121: 904169180.7 | BI121: 158800921688 | BJ121: >
B122: Ставка дисконтирования, % | C122: 0.1 | D122: 0.15 | E122: Балансовая прибыль | W122: =W100-W101-W118-W119 -> 281567397.5 | X122: =IF((X100-X101-X118-X119)>0,(X100-X101-X118-X119),0) -> 1403130800 | Y122: 2425626616 | Z122: 3355649682 | AA122: 4199363812 | AB122: 4649452054 | AC122: 4154209863 | AD122: 3691086115 | AE122: 3257988477 | AF122: 2852961552 | AG122: 2474177874 | AH122: 2119929500 | AI122: 1793387827 | AJ122: 1487959500 | AK122: 1235251364 | AL122: 1409930354 | AM122: 1601871859 | AN122: 1809955915 | AO122: 2033135545 | AP122: 2237454040 | AQ122: 2046047792 | AR122: 1866987894 | AS122: 1699474582 | AT122: 1542760130 | AU122: 1396145448 | AV122: 1258976903 | AW122: 1130643350 | AX122: =IF((AX100-AX101-AX118-AX119)>0,(AX100-AX101-AX118-AX119),0) -> 1010573359 | AY122: 898232621.2 | AZ122: 793121524.9 | BA122: 694772894.7 | BB122: 602749874.7 | BC122: 516643951.9 | BD122: =IF((BD100-BD101-BD118-BD119)>0,(BD100-BD101-BD118-BD119),0) -> 436073109.2 | BE122: =IF((BE100-BE101-BE118-BE119)>0,(BE100-BE101-BE118-BE119),0) -> 360680099 | BF122: 290130830.2 | BG122: 216688157.4 | BH122: 162333985.5 | BI122: 65397126656
B123: Инфляция | C123: 0.01 | E123: Налог на прибыль | W123: =IF(W122>0,W122*$C$89,0) -> 56313479.51 | X123: =IF(X122>0,X122*$C$89,0) -> 280626160 | Y123: 485125323.1 | Z123: 671129936.5 | AA123: 839872762.5 | AB123: 929890410.9 | AC123: 830841972.7 | AD123: 738217223.1 | AE123: 651597695.5 | AF123: 570592310.4 | AG123: 494835574.8 | AH123: 423985900.1 | AI123: 358677565.3 | AJ123: 297591899.9 | AK123: 247050272.9 | AL123: 281986070.7 | AM123: 320374371.9 | AN123: 361991183 | AO123: 406627109.1 | AP123: 447490808 | AQ123: 409209558.3 | AR123: 373397578.7 | AS123: 339894916.4 | AT123: 308552026.1 | AU123: 279229089.6 | AV123: 251795380.6 | AW123: 226128670 | AX123: 202114671.9 | AY123: 179646524.2 | AZ123: 158624305 | BA123: 138954578.9 | BB123: 120549974.9 | BC123: 103328790.4 | BD123: 87214621.83 | BE123: 72136019.8 | BF123: 58026166.03 | BG123: 43337631.48 | BH123: 32466797.11 | BI123: 13079425331
B124: Доля в проекте | C124: 0.5 | E124: Чистая прибыль | W124: =W122-W123 -> 225253918 | X124: =X122-X123 -> 1122504640 | Y124: 1940501293 | Z124: 2684519746 | AA124: 3359491050 | AB124: 3719561643 | AC124: 3323367891 | AD124: 2952868892 | AE124: 2606390782 | AF124: 2282369242 | AG124: 1979342299 | AH124: 1695943600 | AI124: 1434710261 | AJ124: 1190367600 | AK124: 988201091.6 | AL124: 1127944283 | AM124: 1281497487 | AN124: 1447964732 | AO124: 1626508436 | AP124: 1789963232 | AQ124: 1636838233 | AR124: 1493590315 | AS124: 1359579666 | AT124: 1234208104 | AU124: 1116916359 | AV124: 1007181522 | AW124: 904514680.1 | AX124: 808458687.5 | AY124: 718586096.9 | AZ124: 634497219.9 | BA124: 555818315.8 | BB124: 482199899.7 | BC124: 413315161.5 | BD124: 348858487.3 | BE124: 288544079.2 | BF124: 232104664.1 | BG124: 173350525.9 | BH124: 129867188.4 | BI124: 52317701325
B125: Поставка нефти на экспорт | C125: =1-C126 -> 0.3 | E125: капвлож. нак.итогом | W125: =V125+W127 -> 6743956320 | X125: 13487912640 | Y125: 20231868960 | Z125: 26975825280 | AA125: 33719781600 | AB125: 33719781600 | AC125: 33719781600 | AD125: 33719781600 | AE125: 33719781600 | AF125: 33719781600 | AG125: 33719781600 | AH125: 33719781600 | AI125: 33719781600 | AJ125: 33719781600 | AK125: 33719781600 | AL125: 33719781600 | AM125: 33719781600 | AN125: 33719781600 | AO125: 33719781600 | AP125: 33719781600 | AQ125: 33719781600 | AR125: 33719781600 | AS125: 33719781600 | AT125: 33719781600 | AU125: 33719781600 | AV125: 33719781600 | AW125: 33719781600 | AX125: 33719781600 | AY125: 33719781600 | AZ125: 33719781600 | BA125: 33719781600 | BB125: 33719781600 | BC125: 33719781600 | BD125: 33719781600 | BE125: 33719781600 | BF125: 33719781600 | BG125: 33719781600 | BH125: 33719781600
B126: Поставка нефти на Внутренний рынок | C126: 0.7 | E126: амортизация нак. итогом | W126: =W117 -> 451845073.4 | X126: =X117 -> 903690146.9 | Y126: 1355535220 | Z126: 1807380294 | AA126: 2259225367 | AB126: 2259225367 | AC126: 2259225367 | AD126: 2259225367 | AE126: 2259225367 | AF126: 2259225367 | AG126: 2259225367 | AH126: 2259225367 | AI126: 2259225367 | AJ126: 2259225367 | AK126: 2225505586 | AL126: 1773660512 | AM126: 1321815439 | AN126: 869970365.3 | AO126: 418125291.8 | AP126: 0 | AQ126: 0 | AR126: 0 | AS126: 0 | AT126: 0 | AU126: 0 | AV126: 0 | AW126: 0 | AX126: 0 | AY126: 0 | AZ126: 0 | BA126: 0 | BB126: 0 | BC126: 0 | BD126: 0 | BE126: 0 | BF126: 0 | BG126: 0 | BH126: 0 | BI126: =ROUND(SUMIF($W$124:$BH$124,">=0",$W126:$BH126),0) -> 33719781600
B127: Индекс дефлятор | C127: 90 | E127: CAPEX с инфляцией и НДС | W127: =SUM(W128:W130,W139:W140) -> 6743956320 | X127: =SUM(X128:X130,X139:X140) -> 6743956320 | Y127: 6743956320 | Z127: 6743956320 | AA127: 6743956320 | AB127: 0 | AC127: 0 | AD127: 0 | AE127: 0 | AF127: 0 | AG127: 0 | AH127: 0 | AI127: 0 | AJ127: 0 | AK127: 0 | AL127: 0 | AM127: 0 | AN127: 0 | AO127: 0 | AP127: 0 | AQ127: 0 | AR127: 0 | AS127: 0 | AT127: 0 | AU127: 0 | AV127: 0 | AW127: 0 | AX127: 0 | AY127: 0 | AZ127: 0 | BA127: 0 | BB127: 0 | BC127: 0 | BD127: 0 | BE127: 0 | BF127: 0 | BG127: 0 | BH127: 0 | BI127: 33719781600
B128: Ставка кредита | C128: 0.14 | E128: - Бурение эксплуатационное, руб | W128: =$C$99*W$16*$C$127 -> 2768688000 | X128: 2768688000 | Y128: 2768688000 | Z128: 2768688000 | AA128: 2768688000 | AB128: 0 | AC128: 0 | AD128: 0 | AE128: 0 | AF128: 0 | AG128: 0 | AH128: 0 | AI128: 0 | AJ128: 0 | AK128: 0 | AL128: 0 | AM128: 0 | AN128: 0 | AO128: 0 | AP128: 0 | AQ128: 0 | AR128: 0 | AS128: 0 | AT128: 0 | AU128: 0 | AV128: 0 | AW128: 0 | AX128: 0 | AY128: 0 | AZ128: 0 | BA128: 0 | BB128: 0 | BC128: 0 | BD128: 0 | BE128: 0 | BF128: 0 | BG128: 0 | BH128: 0 | BI128: 13843440000
B129: Срок кредита | C129: 6 | E129: Оборудование не вх. в смету строек , руб | W129: =$C$100*W$10*$C$127 -> 773280000 | X129: 773280000 | Y129: 773280000 | Z129: 773280000 | AA129: 773280000 | AB129: 0 | AC129: 0 | AD129: 0 | AE129: 0 | AF129: 0 | AG129: 0 | AH129: 0 | AI129: 0 | AJ129: 0 | AK129: 0 | AL129: 0 | AM129: 0 | AN129: 0 | AO129: 0 | AP129: 0 | AQ129: 0 | AR129: 0 | AS129: 0 | AT129: 0 | AU129: 0 | AV129: 0 | AW129: 0 | AX129: 0 | AY129: 0 | AZ129: 0 | BA129: 0 | BB129: 0 | BC129: 0 | BD129: 0 | BE129: 0 | BF129: 0 | BG129: 0 | BH129: 0 | BI129: 3866400000
E130: Обустройство руб | W130: =SUM(W131:W138) -> 2449012320 | X130: 2449012320 | Y130: 2449012320 | Z130: 2449012320 | AA130: 2449012320 | AB130: 0 | AC130: 0 | AD130: 0 | AE130: 0 | AF130: 0 | AG130: 0 | AH130: 0 | AI130: 0 | AJ130: 0 | AK130: 0 | AL130: 0 | AM130: 0 | AN130: 0 | AO130: 0 | AP130: 0 | AQ130: 0 | AR130: 0 | AS130: 0 | AT130: 0 | AU130: 0 | AV130: 0 | AW130: 0 | AX130: 0 | AY130: 0 | AZ130: 0 | BA130: 0 | BB130: 0 | BC130: 0 | BD130: 0 | BE130: 0 | BF130: 0 | BG130: 0 | BH130: 0 | BI130: 12245061600
B131: Стоимость 1км сейсики 2Д руб | C131: 465000 | E131: Сбор и транспорт нефти и газа руб | W131: =$C$102*W$10*$C$127 -> 496804320 | X131: 496804320 | Y131: 496804320 | Z131: 496804320 | AA131: 496804320 | AB131: 0 | AC131: 0 | AD131: 0 | AE131: 0 | AF131: 0 | AG131: 0 | AH131: 0 | AI131: 0 | AJ131: 0 | AK131: 0 | AL131: 0 | AM131: 0 | AN131: 0 | AO131: 0 | AP131: 0 | AQ131: 0 | AR131: 0 | AS131: 0 | AT131: 0 | AU131: 0 | AV131: 0 | AW131: 0 | AX131: 0 | AY131: 0 | AZ131: 0 | BA131: 0 | BB131: 0 | BC131: 0 | BD131: 0 | BE131: 0 | BF131: 0 | BG131: 0 | BH131: 0 | BI131: 2484021600
B132: Стоимость 1км сейсики 3Д руб | C132: 1240000 | E132: Подготовка нефти и газа руб | W132: =$C$103*W$10*$C$127 -> 32400000 | X132: 32400000 | Y132: 32400000 | Z132: 32400000 | AA132: 32400000 | AB132: 0 | AC132: 0 | AD132: 0 | AE132: 0 | AF132: 0 | AG132: 0 | AH132: 0 | AI132: 0 | AJ132: 0 | AK132: 0 | AL132: 0 | AM132: 0 | AN132: 0 | AO132: 0 | AP132: 0 | AQ132: 0 | AR132: 0 | AS132: 0 | AT132: 0 | AU132: 0 | AV132: 0 | AW132: 0 | AX132: 0 | AY132: 0 | AZ132: 0 | BA132: 0 | BB132: 0 | BC132: 0 | BD132: 0 | BE132: 0 | BF132: 0 | BG132: 0 | BH132: 0
E133: ППД ,руб/скв | W133: =$C$104*W$10*$C$127 -> 410400000 | X133: 410400000 | Y133: 410400000 | Z133: 410400000 | AA133: 410400000 | AB133: 0 | AC133: 0 | AD133: 0 | AE133: 0 | AF133: 0 | AG133: 0 | AH133: 0 | AI133: 0 | AJ133: 0 | AK133: 0 | AL133: 0 | AM133: 0 | AN133: 0 | AO133: 0 | AP133: 0 | AQ133: 0 | AR133: 0 | AS133: 0 | AT133: 0 | AU133: 0 | AV133: 0 | AW133: 0 | AX133: 0 | AY133: 0 | AZ133: 0 | BA133: 0 | BB133: 0 | BC133: 0 | BD133: 0 | BE133: 0 | BF133: 0 | BG133: 0 | BH133: 0 | BI133: =ROUND(SUMIF($W$124:$BH$124,">=0",$W133:$BH133),0) -> 2052000000
B134: BRENT долларов/баррель | C134: 100 | E134: Электроснабжение , руб | W134: =$C$105*W$10*$C$127 -> 361584000 | X134: 361584000 | Y134: 361584000 | Z134: 361584000 | AA134: 361584000 | AB134: 0 | AC134: 0 | AD134: 0 | AE134: 0 | AF134: 0 | AG134: 0 | AH134: 0 | AI134: 0 | AJ134: 0 | AK134: 0 | AL134: 0 | AM134: 0 | AN134: 0 | AO134: 0 | AP134: 0 | AQ134: 0 | AR134: 0 | AS134: 0 | AT134: 0 | AU134: 0 | AV134: 0 | AW134: 0 | AX134: 0 | AY134: 0 | AZ134: 0 | BA134: 0 | BB134: 0 | BC134: 0 | BD134: 0 | BE134: 0 | BF134: 0 | BG134: 0 | BH134: 0 | BI134: 1807920000
C135: 7.3 | E135: Автоматизация , руб | W135: =$C$106*W$10*$C$127 -> 73008000 | X135: 73008000 | Y135: 73008000 | Z135: 73008000 | AA135: 73008000 | AB135: 0 | AC135: 0 | AD135: 0 | AE135: 0 | AF135: 0 | AG135: 0 | AH135: 0 | AI135: 0 | AJ135: 0 | AK135: 0 | AL135: 0 | AM135: 0 | AN135: 0 | AO135: 0 | AP135: 0 | AQ135: 0 | AR135: 0 | AS135: 0 | AT135: 0 | AU135: 0 | AV135: 0 | AW135: 0 | AX135: 0 | AY135: 0 | AZ135: 0 | BA135: 0 | BB135: 0 | BC135: 0 | BD135: 0 | BE135: 0 | BF135: 0 | BG135: 0 | BH135: 0 | BI135: 365040000
C136: =C134*C135 -> 730 | E136: Материально техническое снабжение (Базы..) руб | W136: =$C$107*W$10*$C$127 -> 240624000 | X136: 240624000 | Y136: 240624000 | Z136: 240624000 | AA136: 240624000 | AB136: 0 | AC136: 0 | AD136: 0 | AE136: 0 | AF136: 0 | AG136: 0 | AH136: 0 | AI136: 0 | AJ136: 0 | AK136: 0 | AL136: 0 | AM136: 0 | AN136: 0 | AO136: 0 | AP136: 0 | AQ136: 0 | AR136: 0 | AS136: 0 | AT136: 0 | AU136: 0 | AV136: 0 | AW136: 0 | AX136: 0 | AY136: 0 | AZ136: 0 | BA136: 0 | BB136: 0 | BC136: 0 | BD136: 0 | BE136: 0 | BF136: 0 | BG136: 0 | BH136: 0 | BI136: 1203120000
C137: =C120 -> 38 | E137: Промысловые дороги , руб | W137: =$C$108*W$10*$C$127 -> 695520000 | X137: 695520000 | Y137: 695520000 | Z137: 695520000 | AA137: 695520000 | AB137: 0 | AC137: 0 | AD137: 0 | AE137: 0 | AF137: 0 | AG137: 0 | AH137: 0 | AI137: 0 | AJ137: 0 | AK137: 0 | AL137: 0 | AM137: 0 | AN137: 0 | AO137: 0 | AP137: 0 | AQ137: 0 | AR137: 0 | AS137: 0 | AT137: 0 | AU137: 0 | AV137: 0 | AW137: 0 | AX137: 0 | AY137: 0 | AZ137: 0 | BA137: 0 | BB137: 0 | BC137: 0 | BD137: 0 | BE137: 0 | BF137: 0 | BG137: 0 | BH137: 0 | BI137: 3477600000
C138: =C136*C137 -> 27740 | E138: Прочие , руб | W138: =$C$109*W$10*$C$127 -> 138672000 | X138: 138672000 | Y138: 138672000 | Z138: 138672000 | AA138: 138672000 | AB138: 0 | AC138: 0 | AD138: 0 | AE138: 0 | AF138: 0 | AG138: 0 | AH138: 0 | AI138: 0 | AJ138: 0 | AK138: 0 | AL138: 0 | AM138: 0 | AN138: 0 | AO138: 0 | AP138: 0 | AQ138: 0 | AR138: 0 | AS138: 0 | AT138: 0 | AU138: 0 | AV138: 0 | AW138: 0 | AX138: 0 | AY138: 0 | AZ138: 0 | BA138: 0 | BB138: 0 | BC138: 0 | BD138: 0 | BE138: 0 | BF138: 0 | BG138: 0 | BH138: 0 | BI138: 693360000
E139: Непроиозводственное строительство руб | W139: =$C$110*W$10*$C$127 -> 752976000 | X139: 752976000 | Y139: 752976000 | Z139: 752976000 | AA139: 752976000 | AB139: 0 | AC139: 0 | AD139: 0 | AE139: 0 | AF139: 0 | AG139: 0 | AH139: 0 | AI139: 0 | AJ139: 0 | AK139: 0 | AL139: 0 | AM139: 0 | AN139: 0 | AO139: 0 | AP139: 0 | AQ139: 0 | AR139: 0 | AS139: 0 | AT139: 0 | AU139: 0 | AV139: 0 | AW139: 0 | AX139: 0 | AY139: 0 | AZ139: 0 | BA139: 0 | BB139: 0 | BC139: 0 | BD139: 0 | BE139: 0 | BF139: 0 | BG139: 0 | BH139: 0 | BI139: 3764880000
E140: ГРР всего
E141: - Бурение разведочное, руб
E142: - Сейсмика, руб
E143: Денежный поток (общий ) | U143: =U140 -> 0 | W143: =W124+W117-W127 -> -6066857329 | X143: =X124+X117-X127 -> -4717761533 | Y143: -3447919807 | Z143: -2252056280 | AA143: -1125239903 | AB143: 5978787011 | AC143: 5582593258 | AD143: 5212094260 | AE143: 4865616149 | AF143: 4541594609 | AG143: 4238567667 | AH143: 3955168968 | AI143: 3693935628 | AJ143: 3449592967 | AK143: 3213706677 | AL143: 2901604795 | AM143: 2603312926 | AN143: 2317935097 | AO143: 2044633728 | AP143: 1789963232 | AQ143: 1636838233 | AR143: 1493590315 | AS143: 1359579666 | AT143: 1234208104 | AU143: 1116916359 | AV143: 1007181522 | AW143: 904514680.1 | AX143: 808458687.5 | AY143: 718586096.9 | AZ143: 634497219.9 | BA143: 555818315.8 | BB143: 482199899.7 | BC143: 413315161.5 | BD143: 348858487.3 | BE143: 288544079.2 | BF143: 232104664.1 | BG143: 173350525.9 | BH143: 129867188.4
E144: Денежный поток (общий ) накопленный | U144: 0 | W144: =V144+W143 -> -6066857329 | X144: -1.078461886e+10 | Y144: -1.423253867e+10 | Z144: -1.648459495e+10 | AA144: -1.760983485e+10 | AB144: -1.163104784e+10 | AC144: -6048454584 | AD144: -836360324.1 | AE144: 4029255825 | AF144: 8570850434 | AG144: 1.28094181e+10 | AH144: 1.676458707e+10 | AI144: 2.04585227e+10 | AJ144: 2.390811566e+10 | AK144: 2.712182234e+10 | AL144: 3.002342714e+10 | AM144: 3.262674006e+10 | AN144: 3.494467516e+10 | AO144: 3.698930889e+10 | AP144: 3.877927212e+10 | AQ144: 4.041611035e+10 | AR144: 4.190970067e+10 | AS144: 4.326928033e+10 | AT144: 4.450348844e+10 | AU144: 4.56204048e+10 | AV144: 4.662758632e+10 | AW144: 4.7532101e+10 | AX144: 4.834055969e+10 | AY144: 4.905914578e+10 | AZ144: 4.9693643e+10 | BA144: 5.024946132e+10 | BB144: 5.073166122e+10 | BC144: 5.114497638e+10 | BD144: 5.149383487e+10 | BE144: 5.178237895e+10 | BF144: 5.201448361e+10 | BG144: 5.218783414e+10 | BH144: 5.231770132e+10
E145: Денежный поток ( с учетом доли )
E146: Дисконтированный денежный поток | W146: =ROUND(W143/((1+$C$122)^((W76-$W$76)-0.5)),0) -> -6362973647 | X146: =ROUND(X143/((1+$C$122)^((X76-$W$76)-0.5)),0) -> -4498209127 | Y146: -2988602315 | Z146: -1774587944 | AA146: -806066229 | AB146: 3893552178 | AC146: 3305036183 | AD146: 2805174018 | AE146: 2380634404 | AF146: 2020089177 | AG146: 1713912364 | AH146: 1453924475 | AI146: 1234449829 | AJ146: 1047995190 | AK146: 887574845 | AL146: 728524775 | AM146: 594209724 | AN146: 480974405 | AO146: 385694575 | AP146: 306958338 | AQ146: 255181038 | AR146: 211680788 | AS146: 175170887 | AT146: 144561610 | AU146: 118930310 | AV146: 97496037 | AW146: 79597999 | AX146: 64677269 | AY146: 52261271 | AZ146: 41950602 | BA146: 33407859 | BB146: 26348156 | BC146: 20531078 | BD146: 15753862 | BE146: 11845604 | BF146: 8662360 | BG146: 6469601 | BH146: 4005589 | BI146: =SUMIF(W124:BH124,">=0",W146:BH146) -> 8176797138
E147: Диск. денежный поток накопл. итогом | V147: 0 | W147: =V147+W146 -> -6362973647 | X147: -10861182774 | Y147: -13849785089 | Z147: -15624373033 | AA147: -16430439262 | AB147: -12536887084 | AC147: -9231850901 | AD147: -6426676883 | AE147: -4046042479 | AF147: -2025953302 | AG147: -312040938 | AH147: 1141883537 | AI147: 2376333366 | AJ147: 3424328556 | AK147: 4311903401 | AL147: 5040428176 | AM147: 5634637900 | AN147: 6115612305 | AO147: 6501306880 | AP147: 6808265218 | AQ147: 7063446256 | AR147: 7275127044 | AS147: 7450297931 | AT147: 7594859541 | AU147: 7713789851 | AV147: 7811285888 | AW147: 7890883887 | AX147: 7955561156 | AY147: 8007822427 | AZ147: 8049773029 | BA147: 8083180888 | BB147: 8109529044 | BC147: 8130060122 | BD147: 8145813984 | BE147: 8157659588 | BF147: 8166321948 | BG147: 8172791549 | BH147: 8176797138 | BI147: =BI146/$C$120 -> 215178872.1
E148: NPV | BI148: =BH147 -> 8176797138
E149: IRR (%) | BI149: =ROUND(IF(ISERROR(IRR($W$143:BH143)),0,IRR($W$143:BH143)),2) -> 0.16
E150: DPP (лет) | BI150: =ROUND(IF(ISERROR(TEXT(COUNTIF($V$147:$BH$147,"<=0")+OFFSET($V$147,0,COUNTIF($V$147:$BH$147,"<=0"))/OFFSET($V$147,-1,(COUNTIF($V$147:$BH$147,"<=0")+1))*-1-COUNTIF($V$147:$BH$147,"=0"),"# ## 0,00")),0,TEXT(COUNTIF($V$147:$BH$147,"<=0")+OFFSET($V$147,0,COUNTIF($V$147:$BH$147,"<=0"))/OFFSET($V$147,-1,(COUNTIF($V$147:$BH$147,"<=0")+1))*-1-COUNTIF($V$147:$BH$147,"=0"),"# ## 0,00"))+1,1) -> 11.1
E151: PI | BI151: =ROUND(IF(ISERROR(1+$BI$148/$BI$127),0,1+$BI$148/$BI$127),2) -> 1.24
E152: Срок разработки (лет) | BI152: =COUNTIF(W122:BH122,">0") -> 38
E153: Инфляция | W153: =(1+$C$123)^(W76-$V$76) -> 1.01 | X153: 1.0201 | Y153: 1.030301 | Z153: 1.04060401 | AA153: 1.05101005 | AB153: 1.061520151 | AC153: 1.072135352 | AD153: 1.082856706 | AE153: 1.093685273 | AF153: 1.104622125 | AG153: 1.115668347 | AH153: 1.12682503 | AI153: 1.13809328 | AJ153: 1.149474213 | AK153: 1.160968955 | AL153: 1.172578645 | AM153: 1.184304431 | AN153: 1.196147476 | AO153: 1.20810895 | AP153: 1.22019004 | AQ153: 1.23239194 | AR153: 1.24471586 | AS153: 1.257163018 | AT153: 1.269734649 | AU153: 1.282431995 | AV153: 1.295256315 | AW153: 1.308208878 | AX153: 1.321290967 | AY153: 1.334503877 | AZ153: 1.347848915 | BA153: 1.361327404 | BB153: 1.374940679 | BC153: 1.388690085 | BD153: 1.402576986 | BE153: 1.416602756 | BF153: 1.430768784 | BG153: 1.430768784 | BH153: 1.459527236
E156: n | W156: 1 | X156: 2 | Y156: 3 | Z156: 4 | AA156: 5 | AB156: 6 | AC156: 7 | AD156: 8 | AE156: 9 | AF156: 10
E157: K-Сумма кредита | W157: =-MIN(X147:BH147) -> 16430439262
E158: p-Процент в годовом исчислении | W158: =$C$128 -> 0.14
E159: N-Количество периодов начисления процентов | W159: =$C$129 -> 6
E160: Sn-Сумма гашения за очередной период | W160: =$W$157*($W$158)/(1-((1+$W$158)^-$W$159)) -> 4225210613
E161: Сумма платежа SumPay (основного долга и процентов) | W161: =W160 -> 4225210613 | X161: =IF(X156<=$W$159,W161,0) -> 4225210613 | Y161: 4225210613 | Z161: 4225210613 | AA161: 4225210613 | AB161: 4225210613 | AC161: 0 | AD161: 0 | AE161: 0 | AF161: 0
E162: Гашение долга Sn (основн. Долга) | W162: =W161-W163 -> 1924949116 | X162: =IF(X163>0,(X161-X163),0) -> 2194441993 | Y162: 2501663872 | Z162: 2851896814 | AA162: 3251162368 | AB162: 3706325099 | AC162: -3.070831299e-06 | AD162: -3.500747681e-06 | AE162: -3.990852356e-06 | AF162: -4.549571686e-06
E163: Spn-Сумма процентов за очередной период | W163: =W157*W158 -> 2300261497 | X163: =W167*$W$158 -> 2030768620 | Y163: 1723546741 | Z163: 1373313799 | AA163: 974048245.4 | AB163: 518885513.9 | AC163: 3.070831299e-06 | AD163: 3.500747681e-06 | AE163: 3.990852356e-06 | AF163: 4.549571686e-06
E164: Гашение долга S-Сумма долга выплаченная (погашенная) | W164: =W162 -> 1924949116 | X164: =IF(X161>0,(W164+X162),0) -> 4119391109 | Y164: 6621054981 | Z164: 9472951795 | AA164: 1.272411416e+10 | AB164: 1.643043926e+10 | AC164: 0 | AD164: 0 | AE164: 0 | AF164: 0
E165: Проценты Sp-Сумма процентов общая | W165: =W163 -> 2300261497 | X165: =IF(X161>0,(W165+X163),0) -> 4331030117 | Y165: 6054576858 | Z165: 7427890658 | AA165: 8401938903 | AB165: 8920824417 | AC165: 0 | AD165: 0 | AE165: 0 | AF165: 0
E166: Сумма платежа St-Выплаченная сумма общая (S + Sp) | W166: =W164+W165 -> 4225210613 | X166: 8450421226 | Y166: 1.267563184e+10 | Z166: 1.690084245e+10 | AA166: 2.112605307e+10 | AB166: 2.535126368e+10 | AC166: 0 | AD166: 0 | AE166: 0 | AF166: 0
E167: Остаток долга R-Остаток основного долга | W167: =W157-W162 -> 1.450549015e+10 | X167: =IF((W167-X162)>0,(W167-X162),0) -> 1.231104815e+10 | Y167: 9809384281 | Z167: 6957487467 | AA167: 3706325099 | AB167: 2.193450928e-05 | AC167: 2.500534058e-05 | AD167: 2.850608826e-05 | AE167: 3.249694061e-05 | AF167: 3.70465123e-05
E170: =E124 -> Чистая прибыль | W170: =W124 -> 225253918 | X170: =X124 -> 1122504640 | Y170: 1940501293 | Z170: 2684519746 | AA170: 3359491050 | AB170: 3719561643 | AC170: 3323367891 | AD170: 2952868892 | AE170: 2606390782 | AF170: 2282369242 | AG170: 1979342299 | AH170: 1695943600 | AI170: 1434710261 | AJ170: 1190367600 | AK170: 988201091.6 | AL170: 1127944283 | AM170: 1281497487 | AN170: 1447964732 | AO170: 1626508436 | AP170: 1789963232 | AQ170: 1636838233 | AR170: 1493590315 | AS170: 1359579666 | AT170: 1234208104 | AU170: 1116916359 | AV170: 1007181522 | AW170: 904514680.1 | AX170: 808458687.5 | AY170: 718586096.9 | AZ170: 634497219.9 | BA170: 555818315.8 | BB170: 482199899.7 | BC170: 413315161.5 | BD170: 348858487.3 | BE170: 288544079.2 | BF170: 232104664.1 | BG170: 173350525.9 | BH170: 129867188.4 | BI170: =SUM(W170:BH170) -> 5.231770132e+10
X171: =ROUND(X170/((1+$C$122)^((X76-$V$76)-0.5)),0) -> 972969255 | Y171: =ROUND(Y170/((1+$C$122)^((Y76-$V$76)-0.5)),0) -> 1529087097 | Z171: 1923057211 | AA171: 2187793890 | AB171: 2202074421 | AC171: 1788652468 | AD171: 1444771034 | AE171: 1159315673 | AF171: 922901596 | AG171: 727608412 | AH171: 566755216 | AI171: 435868657 | AJ171: 328760663 | AK171: 248114071 | AL171: 257454820 | AM171: 265912317 | AN171: 273140433 | AO171: 278927699 | AP171: 279053035 | AQ171: 231982762 | AR171: 192437080 | AS171: 159246261 | AT171: 131419646 | AU171: 108118464 | AV171: 88632761 | AW171: 72361817 | AX171: 58797518 | AY171: 47510246 | AZ171: 38136911 | BA171: 30370781 | BB171: 23952869 | BC171: 18664616 | BD171: 14321692 | BE171: 10768731 | BF171: 7874873 | BG171: 5881456 | BH171: 3641445 | BI171: =SUM(W171:BH171) -> 19036337897
E173: CAPEX с инфляцией и НДС | W173: =W127 -> 6743956320 | X173: 6743956320 | Y173: 6743956320 | Z173: 6743956320 | AA173: 6743956320 | AB173: 0 | AC173: 0 | AD173: 0 | AE173: 0 | AF173: 0 | AG173: 0 | AH173: 0 | AI173: 0 | AJ173: 0 | AK173: 0 | AL173: 0 | AM173: 0 | AN173: 0 | AO173: 0 | AP173: 0 | AQ173: 0 | AR173: 0 | AS173: 0 | AT173: 0 | AU173: 0 | AV173: 0 | AW173: 0 | AX173: 0 | AY173: 0 | AZ173: 0 | BA173: 0 | BB173: 0 | BC173: 0 | BD173: 0 | BE173: 0 | BF173: 0 | BG173: 0 | BH173: 0 | BI173: =SUM(W173:BH173) -> 33719781600
X174: =ROUND(X173/((1+$C$122)^((X76-$V$76)-0.5)),0) -> 5845554595 | Y174: 5314140541 | Z174: 4831036855 | AA174: 4391851687 | AB174: 0 | AC174: 0 | AD174: 0 | AE174: 0 | AF174: 0 | AG174: 0 | AH174: 0 | AI174: 0 | AJ174: 0 | AK174: 0 | AL174: 0 | AM174: 0 | AN174: 0 | AO174: 0 | AP174: 0 | AQ174: 0 | AR174: 0 | AS174: 0 | AT174: 0 | AU174: 0 | AV174: 0 | AW174: 0 | AX174: 0 | AY174: 0 | AZ174: 0 | BA174: 0 | BB174: 0 | BC174: 0 | BD174: 0 | BE174: 0 | BF174: 0 | BG174: 0 | BH174: 0 | BI174: =SUM(W174:BH174) -> 20382583678
V176: =V76 -> 2015 | W176: =W76 -> 2016 | X176: 2017 | Y176: 2018 | Z176: 2019 | AA176: 2020 | AB176: 2021 | AC176: 2022 | AD176: 2023 | AE176: 2024 | AF176: 2025 | AG176: 2026 | AH176: 2027 | AI176: 2028 | AJ176: 2029 | AK176: 2030 | AL176: 2031 | AM176: 2032 | AN176: 2033 | AO176: 2034 | AP176: 2035 | AQ176: 2036 | AR176: 2037 | AS176: 2038 | AT176: 2039 | AU176: 2040 | AV176: 2041 | AW176: 2042 | AX176: 2043 | AY176: 2044 | AZ176: 2045 | BA176: 2046 | BB176: 2047 | BC176: 2048 | BD176: 2049 | BE176: 2050 | BF176: 2051 | BG176: 2051 | BH176: 2053
E177: ГРР всего руб | W177: =SUM(W184,W182,W179) -> 189620000 | X177: 111860000 | Y177: 0 | Z177: 0 | AA177: 0 | AB177: 0 | AC177: 0 | AD177: 0 | AE177: 0 | AF177: 0 | AG177: 0 | AH177: 0 | AI177: 0 | AJ177: 0 | AK177: 0 | AL177: 0 | AM177: 0 | AN177: 0 | AO177: 0 | AP177: 0 | AQ177: 0 | AR177: 0 | AS177: 0 | AT177: 0 | AU177: 0 | AV177: 0 | AW177: 0 | AX177: 0 | AY177: 0 | AZ177: 0 | BA177: 0 | BB177: 0 | BC177: 0 | BD177: 0 | BE177: 0 | BF177: 0 | BG177: 0 | BH177: 0 | BI177: =SUM(V177:BH177) -> 301480000
E178: - Бурение разведочное объем скв. | W178: 2 | X178: 1 | BI178: 3
E179: - Бурение разведочное руб | W179: =$C$98*W178*3000*$C$127 -> 155520000 | X179: =$C$98*X178*3000*$C$127 -> 77760000 | Y179: =$C$98*Y178*3000*$C$127 -> 0 | Z179: 0 | AA179: 0 | AB179: 0 | AC179: 0 | AD179: 0 | AE179: 0 | AF179: 0 | AG179: 0 | AH179: 0 | AI179: 0 | AJ179: 0 | AK179: 0 | AL179: 0 | AM179: 0 | AN179: 0 | AO179: 0 | AP179: 0 | AQ179: 0 | AR179: 0 | AS179: 0 | AT179: 0 | AU179: 0 | AV179: 0 | AW179: 0 | AX179: 0 | AY179: 0 | AZ179: 0 | BA179: 0 | BB179: 0 | BC179: 0 | BD179: 0 | BE179: 0 | BF179: 0 | BG179: 0 | BH179: 0 | BI179: 233280000
E180: - Сейсмика всего руб | V180: =SUM(V182,V184) -> 0 | W180: =SUM(W182,W184) -> 34100000 | X180: 34100000 | Y180: 0 | Z180: 0 | AA180: 0 | AB180: 0 | AC180: 0 | AD180: 0 | AE180: 0 | AF180: 0 | AG180: 0 | AH180: 0 | AI180: 0 | AJ180: 0 | AK180: 0 | AL180: 0 | AM180: 0 | AN180: 0 | AO180: 0 | AP180: 0 | AQ180: 0 | AR180: 0 | AS180: 0 | AT180: 0 | AU180: 0 | AV180: 0 | AW180: 0 | AX180: 0 | AY180: 0 | AZ180: 0 | BA180: 0 | BB180: 0 | BC180: 0 | BD180: 0 | BE180: 0 | BF180: 0 | BG180: 0 | BH180: 0 | BI180: 68200000
E181: - Сейсмика 2Д объем км | W181: 20 | X181: 20 | BI181: 40
E182: - Сейсмика 2Д руб | W182: =W181*$C$131 -> 9300000 | X182: =X181*$C$131 -> 9300000 | Y182: 0 | Z182: 0 | AA182: 0 | AB182: 0 | AC182: 0 | AD182: 0 | AE182: 0 | AF182: 0 | AG182: 0 | AH182: 0 | AI182: 0 | AJ182: 0 | AK182: 0 | AL182: 0 | AM182: 0 | AN182: 0 | AO182: 0 | AP182: 0 | AQ182: 0 | AR182: 0 | AS182: 0 | AT182: 0 | AU182: 0 | AV182: 0 | AW182: 0 | AX182: 0 | AY182: 0 | AZ182: 0 | BA182: 0 | BB182: 0 | BC182: 0 | BD182: 0 | BE182: 0 | BF182: 0 | BG182: 0 | BH182: 0 | BI182: 18600000
E183: - Сейсмика 3Д объем км | W183: 20 | X183: 20 | BI183: 40
E184: - Сейсмика 3Д руб | W184: =W183*$C$132 -> 24800000 | X184: =X183*$C$132 -> 24800000 | Y184: 0 | Z184: 0 | AA184: 0 | AB184: 0 | AC184: 0 | AD184: 0 | AE184: 0 | AF184: 0 | AG184: 0 | AH184: 0 | AI184: 0 | AJ184: 0 | AK184: 0 | AL184: 0 | AM184: 0 | AN184: 0 | AO184: 0 | AP184: 0 | AQ184: 0 | AR184: 0 | AS184: 0 | AT184: 0 | AU184: 0 | AV184: 0 | AW184: 0 | AX184: 0 | AY184: 0 | AZ184: 0 | BA184: 0 | BB184: 0 | BC184: 0 | BD184: 0 | BE184: 0 | BF184: 0 | BG184: 0 | BH184: 0 | BI184: 49600000
CRT203: =IF(CRU203<>0,#REF!+1,"") ->  | CRU203: =NORMINV(RAND(),#REF!,(#REF!-#REF!)/#REF!) ->  | CRV203: 40.36168251
CRT204: =IF(CRU204<>0,CRT203+1,"") ->  | CRU204: =NORMINV(RAND(),#REF!,(#REF!-#REF!)/#REF!) ->  | CRV204: 40.40257019
CRU205: =NORMINV(RAND(),#REF!,(#REF!-#REF!)/#REF!) ->  | CRV205: 40.41546976
CRU206: =NORMINV(RAND(),#REF!,(#REF!-#REF!)/#REF!) ->  | CRV206: 40.5941816
CRU207: =NORMINV(RAND(),#REF!,(#REF!-#REF!)/#REF!) ->  | CRV207: 40.61036575
CRU208: =NORMINV(RAND(),#REF!,(#REF!-#REF!)/#REF!) ->  | CRV208: 40.93375007
CRU209: =NORMINV(RAND(),#REF!,(#REF!-#REF!)/#REF!) ->  | CRV209: 40.9452734
CRU210: =NORMINV(RAND(),#REF!,(#REF!-#REF!)/#REF!) ->  | CRV210: 40.97346392
CRU211: =NORMINV(RAND(),#REF!,(#REF!-#REF!)/#REF!) ->  | CRV211: 40.99680871
CRU212: =NORMINV(RAND(),#REF!,(#REF!-#REF!)/#REF!) ->  | CRV212: 41.1153468
CRU213: =NORMINV(RAND(),#REF!,(#REF!-#REF!)/#REF!) ->  | CRV213: 41.32974489

Sheet БЛЕКА-ШОУЛЗА
B1: Real Option Value, руб. | F1: =S0*N_d1-X*EXP(-Rf*Tex)*N_d2 -> 8777161775
B3: Расчет ROV методом Блека-Шоулза | M3: Запасы нефти млн.т | N3: 30
I4: PV=Пт= | M4: Цена нефти руб. | N4: 14501.43587
B5: Текущая стоимость базисного актива; PV | G5: 19036337897 | M5: Bt руб. | N5: =N4*N3*1000000 -> 435043075994
B6: Инвестиции K | G6: 20382583678 | M6: Пт руб. | N6: 19025601821 | O6: =N6/N5 -> 0.04373268504
B7: Срок исполнения (разбуривания) Tex | G7: 5
B8: Безрисковая ставка Rf | G8: 0.1
B9: Стандартное отклонение СО | G9: 0.35
B11: d1 | C11: =(LN(S0/X)+(Rf+0.5*(СО)^2)*Tex)/(СО*SQRT(Tex)) -> 0.9428781568 | E11: d2 | F11: =d_1-СО*SQRT(Tex) -> 0.1602543647
B12: N(d1) | C12: =NORMSDIST(d_1) -> 0.8271283856 | E12: N(d2) | F12: =NORMSDIST(d_2) -> 0.5636596471
H18: K =
B23: https://sibsutis.ru/upload/publications/93f/fhxbjdspoead%20fj%20tbymvtsedutffbnlqtsnuc%20qmsfrsjwccxbptuh%20xxcqchrpthjlvd.pdf

Sheet БИНОМИАЛЬНЫЙ МЕТОД
B1: Real Option Value, руб. | D1: =C36 -> 8839630567
B3: Расчет ROV биномиальным методом
B5: Текущая стоимость базисного актива; PV | D5: 19036337897 | E5: Время шага (dt) | H5: =maturity/steps -> 1
B6: Инвестиции K | D6: 20382583678 | E6: Фактор роста (u) | H6: =EXP(volatility*SQRT(dt)) -> 1.419067549
B7: Срок исплнения (Tex), лет | D7: 5 | E7: Фактор снижения (d) | H7: =1/u -> 0.7046880897
B8: Безрисковая ставка Rf, % | D8: 0.1 | E8: Риск -нейтральная вероятность (p) | H8: =(EXP((Rf)*dt)-d)/(u-d) -> 0.5606023849
B9: Волатильность (σ), % | D9: 0.35
B10: Число шагов (N) | D10: 5
B12: https://sibsutis.ru/upload/publications/93f/fhxbjdspoead%20fj%20tbymvtsedutffbnlqtsnuc%20qmsfrsjwccxbptuh%20xxcqchrpthjlvd.pdf
C14: Расчет базовой биномиальной решетки
H16: =G17*u -> 1.09546561e+11
G17: =F18*u -> 7.719615681e+10
F18: =E19*u -> 5.439921228e+10 | H18: =G19*u -> 5.439921228e+10
E19: =D20*u -> 3.833447698e+10 | G19: =F20*u -> 3.833447698e+10
D20: =C21*u -> 2.701384935e+10 | F20: =E21*u -> 2.701384935e+10 | H20: =G21*u -> 2.701384935e+10
C21: =asset -> 19036337897 | E21: =D22*u -> 19036337897 | G21: =F20*d -> 19036337897
D22: =C21*d -> 1.341468059e+10 | F22: =E21*d -> 1.341468059e+10 | H22: =G23*u -> 1.341468059e+10
E23: =D22*d -> 9453165638 | G23: =F22*d -> 9453165638
F24: =E23*d -> 6661533235 | H24: =G25*u -> 6661533235
G25: =F24*d -> 4694303130
H26: =G25*d -> 3308019505
C28: t0 | D28: t1 | E28: t2 | F28: t3 | G28: t4 | H28: t5
C30: Расчет опционной решетки
H31: =MAX(0,H16-cost) -> 8.916397733e+10
G32: =(p*H31+(1-p)*H33)*EXP(-Rf*dt) -> 5.875323242e+10
F33: =(p*G32+(1-p)*G34)*EXP(-Rf*dt) -> 3.771136419e+10 | H33: =MAX(0,H18-cost) -> 3.40166286e+10
E34: =(p*F33+(1-p)*F35)*EXP(-Rf*dt) -> 2.36725996e+10 | G34: =(p*H33+(1-p)*H35)*EXP(-Rf*dt) -> 1.989155259e+10
D35: =(p*E34+(1-p)*E36)*EXP(-Rf*dt) -> 1.45823724e+10 | F35: =(p*G34+(1-p)*G36)*EXP(-Rf*dt) -> 1.142743557e+10 | H35: =MAX(0,H20-cost) -> 6631265676
C36: =(p*D35+(1-p)*D37)*EXP(-Rf*dt) -> 8839630567 | E36: =(p*F35+(1-p)*F37)*EXP(-Rf*dt) -> 6474996668 | G36: =(p*H35+(1-p)*H37)*EXP(-Rf*dt) -> 3363736135
D37: =(p*E36+(1-p)*E38)*EXP(-Rf*dt) -> 3628581112 | F37: =(p*G36+(1-p)*G38)*EXP(-Rf*dt) -> 1706268658 | H37: =MAX(0,H22-cost) -> 0
E38: =(p*F37+(1-p)*F39)*EXP(-Rf*dt) -> 865511626.7 | G38: =(p*H37+(1-p)*H39)*EXP(-Rf*dt) -> 0
F39: =(p*G38+(1-p)*G40)*EXP(-Rf*dt) -> 0 | H39: =MAX(0,H24-cost) -> 0
G40: =(p*H39+(1-p)*H41)*EXP(-Rf*dt) -> 0
H41: =MAX(0,H26-cost) -> 0
C43: t0 | D43: t1 | E43: t2 | F43: t3 | G43: t4 | H43: t5
C45: Расчет решетки решений
H46: =IF(H31=H16-cost,"Execute","End") -> Execute
G47: =IF(G32=G17-cost,"Execute","Continue") -> Continue
F48: =IF(F33=F18-cost,"Execute","Continue") -> Continue | H48: =IF(H33=H18-cost,"Execute","End") -> Execute
E49: =IF(E34=E19-cost,"Execute","Continue") -> Continue | G49: =IF(G34=G19-cost,"Execute","Continue") -> Continue
D50: =IF(D35=D20-cost,"Execute","Continue") -> Continue | F50: =IF(F35=F20-cost,"Execute","Continue") -> Continue | H50: =IF(H35=H20-cost,"Execute","End") -> Execute
C51: =IF(C36=C21-cost,"Execute","Continue") -> Continue | E51: =IF(E36=E21-cost,"Execute","Continue") -> Continue | G51: =IF(G36=G21-cost,"Execute","Continue") -> Continue
D52: =IF(D37=D22-cost,"Execute","Continue") -> Continue | F52: =IF(F37=F22-cost,"Execute","Continue") -> Continue | H52: =IF(H37=H22-cost,"Execute","End") -> End
E53: =IF(E38=E23-cost,"Execute","Continue") -> Continue | G53: =IF(G38=G23-cost,"Execute","Continue") -> Continue
F54: =IF(F39=F24-cost,"Execute","Continue") -> Continue | H54: =IF(H39=H24-cost,"Execute","End") -> End
G55: =IF(G40=G25-cost,"Execute","Continue") -> Continue
H56: =IF(H41=H26-cost,"Execute","End") -> End
C58: t0 | D58: t1 | E58: t2 | F58: t3 | G58: t4 | H58: t5
